Workbook

Sheet Road only
A1: Period | B1: Start Inv | C1: Arrival | D1: Inv before demand | E1: Demand | F1: Inv after demand | G1: Order (ROAD)
A2: 1 | B2: 15 | C2: 0 | D2: =B2+C2 -> 15 | E2: =RANDBETWEEN(1,6)+RANDBETWEEN(1,6)+RANDBETWEEN(1,6) -> 9 | F2: =D2-E2 -> 6 | G2: =MAX($B$2-F2,0) -> 9 | J2: Costs
A3: 2 | B3: =F2 -> 6 | C3: =G2 -> 9 | D3: =B3+C3 -> 15 | E3: =RANDBETWEEN(1,6)+RANDBETWEEN(1,6)+RANDBETWEEN(1,6) -> 13 | F3: =D3-E3 -> 2 | G3: =MAX($B$2-F3,0) -> 13 | J3: Unit inventory holding cost | M3: 136
A4: 3 | B4: =F3 -> 2 | C4: =G3 -> 13 | D4: 15 | E4: 10 | F4: 5 | G4: 10 | J4: Unit inventory back order cost | M4: =M3*19 -> 2584
A5: 4 | B5: 5 | C5: 10 | D5: 15 | E5: 7 | F5: 8 | G5: 7
A6: 5 | B6: 8 | C6: 7 | D6: 15 | E6: 11 | F6: 4 | G6: 11 | J6: Unit transport cost Road | M6: 400
A7: 6 | B7: 4 | C7: 11 | D7: 15 | E7: 12 | F7: 3 | G7: 12 | J7: Unit transport cost Rail | M7: 350
A8: 7 | B8: 3 | C8: 12 | D8: 15 | E8: 8 | F8: 7 | G8: 8
A9: 8 | B9: 7 | C9: 8 | D9: 15 | E9: 7 | F9: 8 | G9: 7 | J9: Avg Tsp Cost per period | M9: =SUM(G2:G2001)/2000*M6 -> 4207.8
A10: 9 | B10: 8 | C10: 7 | D10: 15 | E10: 15 | F10: 0 | G10: 15 | J10: Avg Inv holding cst per period | M10: =SUMIF(F2:F2002,">0")/2000*M3 -> 617.508
A11: 10 | B11: 0 | C11: 15 | D11: 15 | E11: 16 | F11: -1 | G11: 16 | J11: Avg Inv backorder cst per period | M11: =SUMIF(F2:F2001,"<0")/2000*M4*(-1) -> 155.04
A12: 11 | B12: -1 | C12: 16 | D12: 15 | E12: 7 | F12: 8 | G12: 7
A13: 12 | B13: 8 | C13: 7 | D13: 15 | E13: 10 | F13: 5 | G13: 10
A14: 13 | B14: 5 | C14: 10 | D14: 15 | E14: 10 | F14: 5 | G14: 10 | J14: Avg ttl cost per period | M14: =SUM(M9:M12) -> 4980.348
A15: 14 | B15: 5 | C15: 10 | D15: 15 | E15: 9 | F15: 6 | G15: 9
A16: 15 | B16: 6 | C16: 9 | D16: 15 | E16: 8 | F16: 7 | G16: 8
A17: 16 | B17: 7 | C17: 8 | D17: 15 | E17: 14 | F17: 1 | G17: 14 | J17: Emissions
A18: 17 | B18: 1 | C18: 14 | D18: 15 | E18: 8 | F18: 7 | G18: 8 | J18: Unit emission Road | M18: 0.72
A19: 18 | B19: 7 | C19: 8 | D19: 15 | E19: 9 | F19: 6 | G19: 9 | J19: Unit emission Rail | M19: 0.2
A20: 19 | B20: 6 | C20: 9 | D20: 15 | E20: 11 | F20: 4 | G20: 11
A21: 20 | B21: 4 | C21: 11 | D21: 15 | E21: 16 | F21: -1 | G21: 16 | J21: Avg emission per period (road) | M21: =SUM(G2:G2001)*M18/2000 -> 7.57404
A22: 21 | B22: -1 | C22: 16 | D22: 15 | E22: 12 | F22: 3 | G22: 12
A23: 22 | B23: 3 | C23: 12 | D23: 15 | E23: 12 | F23: 3 | G23: 12
A24: 23 | B24: 3 | C24: 12 | D24: 15 | E24: 16 | F24: -1 | G24: 16 | J24: Service level
A25: 24 | B25: -1 | C25: 16 | D25: 15 | E25: 10 | F25: 5 | G25: 10 | J25: In-stock Probability at the DC | M25: =1-COUNTIF(F2:F2001,"<0")/2000 -> 0.959
A26: 25 | B26: 5 | C26: 10 | D26: 15 | E26: 11 | F26: 4 | G26: 11
A27: 26 | B27: 4 | C27: 11 | D27: 15 | E27: 11 | F27: 4 | G27: 11
A28: 27 | B28: 4 | C28: 11 | D28: 15 | E28: 11 | F28: 4 | G28: 11 | J28: Demand Histogram
A29: 28 | B29: 4 | C29: 11 | D29: 15 | E29: 10 | F29: 5 | G29: 10 | J29: Bin | K29: Frequency | L29: Cumulative %
A30: 29 | B30: 5 | C30: 10 | D30: 15 | E30: 8 | F30: 7 | G30: 8 | J30: 3 | K30: =COUNTIF($E$2:$E$2001,J30) -> 9 | L30: =K30/2000 -> 0.0045
A31: 30 | B31: 7 | C31: 8 | D31: 15 | E31: 9 | F31: 6 | G31: 9 | J31: 4 | K31: =COUNTIF($E$2:$E$2001,J31) -> 32 | L31: =K31/2000+L30 -> 0.0205
A32: 31 | B32: 6 | C32: 9 | D32: 15 | E32: 6 | F32: 9 | G32: 6 | J32: 5 | K32: =COUNTIF($E$2:$E$2001,J32) -> 48 | L32: =K32/2000+L31 -> 0.0445 | P32: =STDEV(E2:E2001) -> 2.935290056
A33: 32 | B33: 9 | C33: 6 | D33: 15 | E33: 9 | F33: 6 | G33: 9 | J33: 6 | K33: =COUNTIF($E$2:$E$2001,J33) -> 91 | L33: 0.09
A34: 33 | B34: 6 | C34: 9 | D34: 15 | E34: 13 | F34: 2 | G34: 13 | J34: 7 | K34: 129 | L34: 0.1545
A35: 34 | B35: 2 | C35: 13 | D35: 15 | E35: 9 | F35: 6 | G35: 9 | J35: 8 | K35: 209 | L35: 0.259
A36: 35 | B36: 6 | C36: 9 | D36: 15 | E36: 7 | F36: 8 | G36: 7 | J36: 9 | K36: 235 | L36: 0.3765
A37: 36 | B37: 8 | C37: 7 | D37: 15 | E37: 5 | F37: 10 | G37: 5 | J37: 10 | K37: 243 | L37: 0.498
A38: 37 | B38: 10 | C38: 5 | D38: 15 | E38: 11 | F38: 4 | G38: 11 | J38: 11 | K38: 232 | L38: 0.614
A39: 38 | B39: 4 | C39: 11 | D39: 15 | E39: 11 | F39: 4 | G39: 11 | J39: 12 | K39: 227 | L39: 0.7275
A40: 39 | B40: 4 | C40: 11 | D40: 15 | E40: 14 | F40: 1 | G40: 14 | J40: 13 | K40: 220 | L40: 0.8375
A41: 40 | B41: 1 | C41: 14 | D41: 15 | E41: 5 | F41: 10 | G41: 5 | J41: 14 | K41: 153 | L41: 0.914
A42: 41 | B42: 10 | C42: 5 | D42: 15 | E42: 7 | F42: 8 | G42: 7 | J42: 15 | K42: 90 | L42: 0.959
A43: 42 | B43: 8 | C43: 7 | D43: 15 | E43: 11 | F43: 4 | G43: 11 | J43: 16 | K43: 53 | L43: 0.9855
A44: 43 | B44: 4 | C44: 11 | D44: 15 | E44: 10 | F44: 5 | G44: 10 | J44: 17 | K44: 20 | L44: 0.9955
A45: 44 | B45: 5 | C45: 10 | D45: 15 | E45: 3 | F45: 12 | G45: 3 | J45: 18 | K45: =COUNTIF($E$2:$E$2001,J45) -> 9 | L45: =K45/2000+L44 -> 1
A46: 45 | B46: 12 | C46: 3 | D46: 15 | E46: 13 | F46: 2 | G46: 13
A47: 46 | B47: 2 | C47: 13 | D47: 15 | E47: 8 | F47: 7 | G47: 8
A48: 47 | B48: 7 | C48: 8 | D48: 15 | E48: 15 | F48: 0 | G48: 15
A49: 48 | B49: 0 | C49: 15 | D49: 15 | E49: 8 | F49: 7 | G49: 8
A50: 49 | B50: 7 | C50: 8 | D50: 15 | E50: 16 | F50: -1 | G50: 16
A51: 50 | B51: -1 | C51: 16 | D51: 15 | E51: 13 | F51: 2 | G51: 13
A52: 51 | B52: 2 | C52: 13 | D52: 15 | E52: 7 | F52: 8 | G52: 7
A53: 52 | B53: 8 | C53: 7 | D53: 15 | E53: 10 | F53: 5 | G53: 10
A54: 53 | B54: 5 | C54: 10 | D54: 15 | E54: 7 | F54: 8 | G54: 7
A55: 54 | B55: 8 | C55: 7 | D55: 15 | E55: 9 | F55: 6 | G55: 9
A56: 55 | B56: 6 | C56: 9 | D56: 15 | E56: 8 | F56: 7 | G56: 8
A57: 56 | B57: 7 | C57: 8 | D57: 15 | E57: 11 | F57: 4 | G57: 11
A58: 57 | B58: 4 | C58: 11 | D58: 15 | E58: 8 | F58: 7 | G58: 8
A59: 58 | B59: 7 | C59: 8 | D59: 15 | E59: 8 | F59: 7 | G59: 8
A60: 59 | B60: 7 | C60: 8 | D60: 15 | E60: 14 | F60: 1 | G60: 14
A61: 60 | B61: 1 | C61: 14 | D61: 15 | E61: 9 | F61: 6 | G61: 9
A62: 61 | B62: 6 | C62: 9 | D62: 15 | E62: 8 | F62: 7 | G62: 8
A63: 62 | B63: 7 | C63: 8 | D63: 15 | E63: 7 | F63: 8 | G63: 7
A64: 63 | B64: 8 | C64: 7 | D64: 15 | E64: 12 | F64: 3 | G64: 12
A65: 64 | B65: 3 | C65: 12 | D65: 15 | E65: 14 | F65: 1 | G65: 14
A66: 65 | B66: 1 | C66: 14 | D66: 15 | E66: 6 | F66: 9 | G66: 6
A67: 66 | B67: 9 | C67: 6 | D67: =B67+C67 -> 15 | E67: =RANDBETWEEN(1,6)+RANDBETWEEN(1,6)+RANDBETWEEN(1,6) -> 6 | F67: =D67-E67 -> 9 | G67: =MAX($B$2-F67,0) -> 6
A68: 67 | B68: =F67 -> 9 | C68: =G67 -> 6 | D68: 15 | E68: 6 | F68: 9 | G68: 6
A69: 68 | B69: 9 | C69: 6 | D69: 15 | E69: 7 | F69: 8 | G69: 7
A70: 69 | B70: 8 | C70: 7 | D70: 15 | E70: 16 | F70: -1 | G70: 16
A71: 70 | B71: -1 | C71: 16 | D71: 15 | E71: 9 | F71: 6 | G71: 9
A72: 71 | B72: 6 | C72: 9 | D72: 15 | E72: 15 | F72: 0 | G72: 15
A73: 72 | B73: 0 | C73: 15 | D73: 15 | E73: 7 | F73: 8 | G73: 7
A74: 73 | B74: 8 | C74: 7 | D74: 15 | E74: 14 | F74: 1 | G74: 14
A75: 74 | B75: 1 | C75: 14 | D75: 15 | E75: 9 | F75: 6 | G75: 9
A76: 75 | B76: 6 | C76: 9 | D76: 15 | E76: 14 | F76: 1 | G76: 14
A77: 76 | B77: 1 | C77: 14 | D77: 15 | E77: 11 | F77: 4 | G77: 11
A78: 77 | B78: 4 | C78: 11 | D78: 15 | E78: 15 | F78: 0 | G78: 15
A79: 78 | B79: 0 | C79: 15 | D79: 15 | E79: 10 | F79: 5 | G79: 10
A80: 79 | B80: 5 | C80: 10 | D80: 15 | E80: 8 | F80: 7 | G80: 8
A81: 80 | B81: 7 | C81: 8 | D81: 15 | E81: 13 | F81: 2 | G81: 13
A82: 81 | B82: 2 | C82: 13 | D82: 15 | E82: 9 | F82: 6 | G82: 9
A83: 82 | B83: 6 | C83: 9 | D83: 15 | E83: 13 | F83: 2 | G83: 13
A84: 83 | B84: 2 | C84: 13 | D84: 15 | E84: 11 | F84: 4 | G84: 11
A85: 84 | B85: 4 | C85: 11 | D85: 15 | E85: 10 | F85: 5 | G85: 10
A86: 85 | B86: 5 | C86: 10 | D86: 15 | E86: 8 | F86: 7 | G86: 8
A87: 86 | B87: 7 | C87: 8 | D87: 15 | E87: 11 | F87: 4 | G87: 11
A88: 87 | B88: 4 | C88: 11 | D88: 15 | E88: 14 | F88: 1 | G88: 14
A89: 88 | B89: 1 | C89: 14 | D89: 15 | E89: 11 | F89: 4 | G89: 11
A90: 89 | B90: 4 | C90: 11 | D90: 15 | E90: 12 | F90: 3 | G90: 12
A91: 90 | B91: 3 | C91: 12 | D91: 15 | E91: 14 | F91: 1 | G91: 14
A92: 91 | B92: 1 | C92: 14 | D92: 15 | E92: 15 | F92: 0 | G92: 15
A93: 92 | B93: 0 | C93: 15 | D93: 15 | E93: 6 | F93: 9 | G93: 6
A94: 93 | B94: 9 | C94: 6 | D94: 15 | E94: 12 | F94: 3 | G94: 12
A95: 94 | B95: 3 | C95: 12 | D95: 15 | E95: 9 | F95: 6 | G95: 9
A96: 95 | B96: 6 | C96: 9 | D96: 15 | E96: 14 | F96: 1 | G96: 14
A97: 96 | B97: 1 | C97: 14 | D97: 15 | E97: 13 | F97: 2 | G97: 13
A98: 97 | B98: 2 | C98: 13 | D98: 15 | E98: 13 | F98: 2 | G98: 13
A99: 98 | B99: 2 | C99: 13 | D99: 15 | E99: 8 | F99: 7 | G99: 8
A100: 99 | B100: 7 | C100: 8 | D100: 15 | E100: 15 | F100: 0 | G100: 15
A101: 100 | B101: 0 | C101: 15 | D101: 15 | E101: 14 | F101: 1 | G101: 14
A102: 101 | B102: 1 | C102: 14 | D102: 15 | E102: 5 | F102: 10 | G102: 5
A103: 102 | B103: 10 | C103: 5 | D103: 15 | E103: 9 | F103: 6 | G103: 9
A104: 103 | B104: 6 | C104: 9 | D104: 15 | E104: 7 | F104: 8 | G104: 7
A105: 104 | B105: 8 | C105: 7 | D105: 15 | E105: 10 | F105: 5 | G105: 10
A106: 105 | B106: 5 | C106: 10 | D106: 15 | E106: 9 | F106: 6 | G106: 9
A107: 106 | B107: 6 | C107: 9 | D107: 15 | E107: 9 | F107: 6 | G107: 9
A108: 107 | B108: 6 | C108: 9 | D108: 15 | E108: 10 | F108: 5 | G108: 10
A109: 108 | B109: 5 | C109: 10 | D109: 15 | E109: 14 | F109: 1 | G109: 14
A110: 109 | B110: 1 | C110: 14 | D110: 15 | E110: 15 | F110: 0 | G110: 15
A111: 110 | B111: 0 | C111: 15 | D111: 15 | E111: 11 | F111: 4 | G111: 11
A112: 111 | B112: 4 | C112: 11 | D112: 15 | E112: 7 | F112: 8 | G112: 7
A113: 112 | B113: 8 | C113: 7 | D113: 15 | E113: 13 | F113: 2 | G113: 13
A114: 113 | B114: 2 | C114: 13 | D114: 15 | E114: 4 | F114: 11 | G114: 4
A115: 114 | B115: 11 | C115: 4 | D115: 15 | E115: 9 | F115: 6 | G115: 9
A116: 115 | B116: 6 | C116: 9 | D116: 15 | E116: 12 | F116: 3 | G116: 12
A117: 116 | B117: 3 | C117: 12 | D117: 15 | E117: 18 | F117: -3 | G117: 18
A118: 117 | B118: -3 | C118: 18 | D118: 15 | E118: 7 | F118: 8 | G118: 7
A119: 118 | B119: 8 | C119: 7 | D119: 15 | E119: 5 | F119: 10 | G119: 5
A120: 119 | B120: 10 | C120: 5 | D120: 15 | E120: 9 | F120: 6 | G120: 9
A121: 120 | B121: 6 | C121: 9 | D121: 15 | E121: 16 | F121: -1 | G121: 16
A122: 121 | B122: -1 | C122: 16 | D122: 15 | E122: 10 | F122: 5 | G122: 10
A123: 122 | B123: 5 | C123: 10 | D123: 15 | E123: 10 | F123: 5 | G123: 10
A124: 123 | B124: 5 | C124: 10 | D124: 15 | E124: 8 | F124: 7 | G124: 8
A125: 124 | B125: 7 | C125: 8 | D125: 15 | E125: 13 | F125: 2 | G125: 13
A126: 125 | B126: 2 | C126: 13 | D126: 15 | E126: 12 | F126: 3 | G126: 12
A127: 126 | B127: 3 | C127: 12 | D127: 15 | E127: 10 | F127: 5 | G127: 10
A128: 127 | B128: 5 | C128: 10 | D128: 15 | E128: 14 | F128: 1 | G128: 14
A129: 128 | B129: 1 | C129: 14 | D129: 15 | E129: 6 | F129: 9 | G129: 6
A130: 129 | B130: 9 | C130: 6 | D130: 15 | E130: 13 | F130: 2 | G130: 13
A131: 130 | B131: 2 | C131: 13 | D131: =B131+C131 -> 15 | E131: =RANDBETWEEN(1,6)+RANDBETWEEN(1,6)+RANDBETWEEN(1,6) -> 9 | F131: =D131-E131 -> 6 | G131: =MAX($B$2-F131,0) -> 9
A132: 131 | B132: =F131 -> 6 | C132: =G131 -> 9 | D132: 15 | E132: 9 | F132: 6 | G132: 9
A133: 132 | B133: 6 | C133: 9 | D133: 15 | E133: 8 | F133: 7 | G133: 8
A134: 133 | B134: 7 | C134: 8 | D134: 15 | E134: 12 | F134: 3 | G134: 12
A135: 134 | B135: 3 | C135: 12 | D135: 15 | E135: 11 | F135: 4 | G135: 11
A136: 135 | B136: 4 | C136: 11 | D136: 15 | E136: 16 | F136: -1 | G136: 16
A137: 136 | B137: -1 | C137: 16 | D137: 15 | E137: 11 | F137: 4 | G137: 11
A138: 137 | B138: 4 | C138: 11 | D138: 15 | E138: 14 | F138: 1 | G138: 14
A139: 138 | B139: 1 | C139: 14 | D139: 15 | E139: 8 | F139: 7 | G139: 8
A140: 139 | B140: 7 | C140: 8 | D140: 15 | E140: 9 | F140: 6 | G140: 9
A141: 140 | B141: 6 | C141: 9 | D141: 15 | E141: 10 | F141: 5 | G141: 10
A142: 141 | B142: 5 | C142: 10 | D142: 15 | E142: 13 | F142: 2 | G142: 13
A143: 142 | B143: 2 | C143: 13 | D143: 15 | E143: 5 | F143: 10 | G143: 5
A144: 143 | B144: 10 | C144: 5 | D144: 15 | E144: 13 | F144: 2 | G144: 13
A145: 144 | B145: 2 | C145: 13 | D145: 15 | E145: 12 | F145: 3 | G145: 12
A146: 145 | B146: 3 | C146: 12 | D146: 15 | E146: 12 | F146: 3 | G146: 12
A147: 146 | B147: 3 | C147: 12 | D147: 15 | E147: 8 | F147: 7 | G147: 8
A148: 147 | B148: 7 | C148: 8 | D148: 15 | E148: 8 | F148: 7 | G148: 8
A149: 148 | B149: 7 | C149: 8 | D149: 15 | E149: 15 | F149: 0 | G149: 15
A150: 149 | B150: 0 | C150: 15 | D150: 15 | E150: 11 | F150: 4 | G150: 11
A151: 150 | B151: 4 | C151: 11 | D151: 15 | E151: 11 | F151: 4 | G151: 11
A152: 151 | B152: 4 | C152: 11 | D152: 15 | E152: 15 | F152: 0 | G152: 15
A153: 152 | B153: 0 | C153: 15 | D153: 15 | E153: 8 | F153: 7 | G153: 8
A154: 153 | B154: 7 | C154: 8 | D154: 15 | E154: 12 | F154: 3 | G154: 12
A155: 154 | B155: 3 | C155: 12 | D155: 15 | E155: 13 | F155: 2 | G155: 13
A156: 155 | B156: 2 | C156: 13 | D156: 15 | E156: 9 | F156: 6 | G156: 9
A157: 156 | B157: 6 | C157: 9 | D157: 15 | E157: 13 | F157: 2 | G157: 13
A158: 157 | B158: 2 | C158: 13 | D158: 15 | E158: 11 | F158: 4 | G158: 11
A159: 158 | B159: 4 | C159: 11 | D159: 15 | E159: 8 | F159: 7 | G159: 8
A160: 159 | B160: 7 | C160: 8 | D160: 15 | E160: 7 | F160: 8 | G160: 7
A161: 160 | B161: 8 | C161: 7 | D161: 15 | E161: 14 | F161: 1 | G161: 14
A162: 161 | B162: 1 | C162: 14 | D162: 15 | E162: 11 | F162: 4 | G162: 11
A163: 162 | B163: 4 | C163: 11 | D163: 15 | E163: 12 | F163: 3 | G163: 12
A164: 163 | B164: 3 | C164: 12 | D164: 15 | E164: 12 | F164: 3 | G164: 12
A165: 164 | B165: 3 | C165: 12 | D165: 15 | E165: 15 | F165: 0 | G165: 15
A166: 165 | B166: 0 | C166: 15 | D166: 15 | E166: 9 | F166: 6 | G166: 9
A167: 166 | B167: 6 | C167: 9 | D167: 15 | E167: 13 | F167: 2 | G167: 13
A168: 167 | B168: 2 | C168: 13 | D168: 15 | E168: 8 | F168: 7 | G168: 8
A169: 168 | B169: 7 | C169: 8 | D169: 15 | E169: 13 | F169: 2 | G169: 13
A170: 169 | B170: 2 | C170: 13 | D170: 15 | E170: 11 | F170: 4 | G170: 11
A171: 170 | B171: 4 | C171: 11 | D171: 15 | E171: 16 | F171: -1 | G171: 16
A172: 171 | B172: -1 | C172: 16 | D172: 15 | E172: 12 | F172: 3 | G172: 12
A173: 172 | B173: 3 | C173: 12 | D173: 15 | E173: 11 | F173: 4 | G173: 11
A174: 173 | B174: 4 | C174: 11 | D174: 15 | E174: 9 | F174: 6 | G174: 9
A175: 174 | B175: 6 | C175: 9 | D175: 15 | E175: 7 | F175: 8 | G175: 7
A176: 175 | B176: 8 | C176: 7 | D176: 15 | E176: 12 | F176: 3 | G176: 12
A177: 176 | B177: 3 | C177: 12 | D177: 15 | E177: 12 | F177: 3 | G177: 12
A178: 177 | B178: 3 | C178: 12 | D178: 15 | E178: 11 | F178: 4 | G178: 11
A179: 178 | B179: 4 | C179: 11 | D179: 15 | E179: 18 | F179: -3 | G179: 18
A180: 179 | B180: -3 | C180: 18 | D180: 15 | E180: 15 | F180: 0 | G180: 15
A181: 180 | B181: 0 | C181: 15 | D181: 15 | E181: 11 | F181: 4 | G181: 11
A182: 181 | B182: 4 | C182: 11 | D182: 15 | E182: 11 | F182: 4 | G182: 11
A183: 182 | B183: 4 | C183: 11 | D183: 15 | E183: 12 | F183: 3 | G183: 12
A184: 183 | B184: 3 | C184: 12 | D184: 15 | E184: 9 | F184: 6 | G184: 9
A185: 184 | B185: 6 | C185: 9 | D185: 15 | E185: 13 | F185: 2 | G185: 13
A186: 185 | B186: 2 | C186: 13 | D186: 15 | E186: 11 | F186: 4 | G186: 11
A187: 186 | B187: 4 | C187: 11 | D187: 15 | E187: 11 | F187: 4 | G187: 11
A188: 187 | B188: 4 | C188: 11 | D188: 15 | E188: 14 | F188: 1 | G188: 14
A189: 188 | B189: 1 | C189: 14 | D189: 15 | E189: 7 | F189: 8 | G189: 7
A190: 189 | B190: 8 | C190: 7 | D190: 15 | E190: 9 | F190: 6 | G190: 9
A191: 190 | B191: 6 | C191: 9 | D191: 15 | E191: 9 | F191: 6 | G191: 9
A192: 191 | B192: 6 | C192: 9 | D192: 15 | E192: 12 | F192: 3 | G192: 12
A193: 192 | B193: 3 | C193: 12 | D193: 15 | E193: 13 | F193: 2 | G193: 13
A194: 193 | B194: 2 | C194: 13 | D194: 15 | E194: 13 | F194: 2 | G194: 13
A195: 194 | B195: 2 | C195: 13 | D195: =B195+C195 -> 15 | E195: =RANDBETWEEN(1,6)+RANDBETWEEN(1,6)+RANDBETWEEN(1,6) -> 8 | F195: =D195-E195 -> 7 | G195: =MAX($B$2-F195,0) -> 8
A196: 195 | B196: =F195 -> 7 | C196: =G195 -> 8 | D196: 15 | E196: 13 | F196: 2 | G196: 13
A197: 196 | B197: 2 | C197: 13 | D197: 15 | E197: 10 | F197: 5 | G197: 10
A198: 197 | B198: 5 | C198: 10 | D198: 15 | E198: 11 | F198: 4 | G198: 11
A199: 198 | B199: 4 | C199: 11 | D199: 15 | E199: 12 | F199: 3 | G199: 12
A200: 199 | B200: 3 | C200: 12 | D200: 15 | E200: 8 | F200: 7 | G200: 8
... 1801 more rows

Sheet Rail only
A1: Period | B1: Start Inv | C1: Arrival | D1: Inv before demand | E1: Demand | F1: Inv after demand | G1: Order (RAIL)
A2: 1 | B2: ='Road only'!B2 -> 15 | C2: 0 | D2: =B2+C2 -> 15 | E2: ='Road only'!E2 -> 9 | F2: =D2-E2 -> 6 | G2: =AVERAGE($E$2:$E$1001)*2 -> 21.138 | J2: Costs
A3: 2 | B3: =F2 -> 6 | C3: =G2 -> 21.138 | D3: =B3+C3 -> 27.138 | E3: ='Road only'!E3 -> 13 | F3: =D3-E3 -> 14.138 | J3: Unit inventory holding cost | M3: ='Road only'!M3 -> 136
A4: 3 | B4: =F3 -> 14.138 | C4: =G3 -> 0 | D4: 14.138 | E4: ='Road only'!E4 -> 10 | F4: 4.138 | G4: =AVERAGE($E$2:$E$1001)*2 -> 21.138 | J4: Unit inventory back order cost | M4: ='Road only'!M4 -> 2584
A5: 4 | B5: 4.138 | C5: 21.138 | D5: 25.276 | E5: ='Road only'!E5 -> 7 | F5: 18.276
A6: 5 | B6: 18.276 | C6: 0 | D6: 18.276 | E6: ='Road only'!E6 -> 11 | F6: 7.276 | G6: =AVERAGE($E$2:$E$1001)*2 -> 21.138 | J6: Unit transport cost Road | M6: ='Road only'!M6 -> 400
A7: 6 | B7: 7.276 | C7: 21.138 | D7: 28.414 | E7: ='Road only'!E7 -> 12 | F7: 16.414 | J7: Unit transport cost Rail | M7: ='Road only'!M7 -> 350
A8: 7 | B8: 16.414 | C8: 0 | D8: 16.414 | E8: ='Road only'!E8 -> 8 | F8: 8.414 | G8: =AVERAGE($E$2:$E$1001)*2 -> 21.138
A9: 8 | B9: 8.414 | C9: 21.138 | D9: 29.552 | E9: ='Road only'!E9 -> 7 | F9: 22.552 | J9: Avg Tsp Cost per period | M9: =SUM(G2:G2001)/2000*M7 -> 3699.15
A10: 9 | B10: 22.552 | C10: 0 | D10: 22.552 | E10: ='Road only'!E10 -> 15 | F10: 7.552 | G10: =AVERAGE($E$2:$E$1001)*2 -> 21.138 | J10: Avg Inv holding cst per period | M10: =SUMIF(F2:F2002,">0")/2000*M3 -> 3645.59288
A11: 10 | B11: 7.552 | C11: 21.138 | D11: 28.69 | E11: ='Road only'!E11 -> 16 | F11: 12.69 | J11: Avg Inv backorder cst per period | M11: =SUMIF(F2:F2001,"<0")/2000*M4*(-1) -> 3994.42472
A12: 11 | B12: 12.69 | C12: 0 | D12: 12.69 | E12: ='Road only'!E12 -> 7 | F12: 5.69 | G12: =AVERAGE($E$2:$E$1001)*2 -> 21.138
A13: 12 | B13: 5.69 | C13: 21.138 | D13: 26.828 | E13: ='Road only'!E13 -> 10 | F13: 16.828
A14: 13 | B14: 16.828 | C14: 0 | D14: 16.828 | E14: ='Road only'!E14 -> 10 | F14: 6.828 | G14: =AVERAGE($E$2:$E$1001)*2 -> 21.138 | J14: Avg ttl cost per period | M14: =SUM(M9:M12) -> 11339.1676
A15: 14 | B15: 6.828 | C15: 21.138 | D15: 27.966 | E15: ='Road only'!E15 -> 9 | F15: 18.966
A16: 15 | B16: 18.966 | C16: 0 | D16: 18.966 | E16: ='Road only'!E16 -> 8 | F16: 10.966 | G16: =AVERAGE($E$2:$E$1001)*2 -> 21.138
A17: 16 | B17: 10.966 | C17: 21.138 | D17: 32.104 | E17: ='Road only'!E17 -> 14 | F17: 18.104 | J17: Emissions
A18: 17 | B18: 18.104 | C18: 0 | D18: 18.104 | E18: ='Road only'!E18 -> 8 | F18: 10.104 | G18: =AVERAGE($E$2:$E$1001)*2 -> 21.138 | J18: Unit emission Road | M18: ='Road only'!M18 -> 0.72
A19: 18 | B19: 10.104 | C19: 21.138 | D19: 31.242 | E19: ='Road only'!E19 -> 9 | F19: 22.242 | J19: Unit emission Rail | M19: ='Road only'!M19 -> 0.2
A20: 19 | B20: 22.242 | C20: 0 | D20: 22.242 | E20: ='Road only'!E20 -> 11 | F20: 11.242 | G20: =AVERAGE($E$2:$E$1001)*2 -> 21.138
A21: 20 | B21: 11.242 | C21: 21.138 | D21: 32.38 | E21: ='Road only'!E21 -> 16 | F21: 16.38 | J21: Avg emission per period (rail) | M21: =SUM(G2:G2001)*M19/2000 -> 2.1138
A22: 21 | B22: 16.38 | C22: 0 | D22: 16.38 | E22: ='Road only'!E22 -> 12 | F22: 4.38 | G22: =AVERAGE($E$2:$E$1001)*2 -> 21.138
A23: 22 | B23: 4.38 | C23: 21.138 | D23: 25.518 | E23: ='Road only'!E23 -> 12 | F23: 13.518
A24: 23 | B24: 13.518 | C24: 0 | D24: 13.518 | E24: ='Road only'!E24 -> 16 | F24: -2.482 | G24: =AVERAGE($E$2:$E$1001)*2 -> 21.138 | J24: Service level
A25: 24 | B25: -2.482 | C25: 21.138 | D25: 18.656 | E25: ='Road only'!E25 -> 10 | F25: 8.656 | J25: In-stock Probability at the DC | M25: =1-COUNTIF(F2:F2001,"<0")/2000 -> 0.876
A26: 25 | B26: 8.656 | C26: 0 | D26: 8.656 | E26: ='Road only'!E26 -> 11 | F26: -2.344 | G26: =AVERAGE($E$2:$E$1001)*2 -> 21.138
A27: 26 | B27: -2.344 | C27: 21.138 | D27: 18.794 | E27: ='Road only'!E27 -> 11 | F27: 7.794
A28: 27 | B28: 7.794 | C28: 0 | D28: 7.794 | E28: ='Road only'!E28 -> 11 | F28: -3.206 | G28: =AVERAGE($E$2:$E$1001)*2 -> 21.138 | J28: Demand Histogram
A29: 28 | B29: -3.206 | C29: 21.138 | D29: 17.932 | E29: ='Road only'!E29 -> 10 | F29: 7.932 | J29: Bin | K29: Frequency | L29: Cumulative %
A30: 29 | B30: 7.932 | C30: 0 | D30: 7.932 | E30: ='Road only'!E30 -> 8 | F30: -0.068 | G30: =AVERAGE($E$2:$E$1001)*2 -> 21.138 | J30: 3 | K30: =COUNTIF($E$2:$E$2001,J30) -> 9 | L30: =K30/2000 -> 0.0045
A31: 30 | B31: -0.068 | C31: 21.138 | D31: 21.07 | E31: ='Road only'!E31 -> 9 | F31: 12.07 | J31: 4 | K31: =COUNTIF($E$2:$E$2001,J31) -> 32 | L31: =K31/2000+L30 -> 0.0205
A32: 31 | B32: 12.07 | C32: 0 | D32: 12.07 | E32: ='Road only'!E32 -> 6 | F32: 6.07 | G32: =AVERAGE($E$2:$E$1001)*2 -> 21.138 | J32: 5 | K32: 48 | L32: =K32/2000+L31 -> 0.0445
A33: 32 | B33: 6.07 | C33: 21.138 | D33: 27.208 | E33: ='Road only'!E33 -> 9 | F33: 18.208 | J33: 6 | K33: 91 | L33: 0.09
A34: 33 | B34: 18.208 | C34: 0 | D34: 18.208 | E34: ='Road only'!E34 -> 13 | F34: 5.208 | G34: =AVERAGE($E$2:$E$1001)*2 -> 21.138 | J34: 7 | K34: 129 | L34: 0.1545
A35: 34 | B35: 5.208 | C35: 21.138 | D35: 26.346 | E35: ='Road only'!E35 -> 9 | F35: 17.346 | J35: 8 | K35: 209 | L35: 0.259
A36: 35 | B36: 17.346 | C36: 0 | D36: 17.346 | E36: ='Road only'!E36 -> 7 | F36: 10.346 | G36: =AVERAGE($E$2:$E$1001)*2 -> 21.138 | J36: 9 | K36: 235 | L36: 0.3765
A37: 36 | B37: 10.346 | C37: 21.138 | D37: 31.484 | E37: ='Road only'!E37 -> 5 | F37: 26.484 | J37: 10 | K37: 243 | L37: 0.498
A38: 37 | B38: 26.484 | C38: 0 | D38: 26.484 | E38: ='Road only'!E38 -> 11 | F38: 15.484 | G38: =AVERAGE($E$2:$E$1001)*2 -> 21.138 | J38: 11 | K38: 232 | L38: 0.614
A39: 38 | B39: 15.484 | C39: 21.138 | D39: 36.622 | E39: ='Road only'!E39 -> 11 | F39: 25.622 | J39: 12 | K39: 227 | L39: 0.7275
A40: 39 | B40: 25.622 | C40: 0 | D40: 25.622 | E40: ='Road only'!E40 -> 14 | F40: 11.622 | G40: =AVERAGE($E$2:$E$1001)*2 -> 21.138 | J40: 13 | K40: 220 | L40: 0.8375
A41: 40 | B41: 11.622 | C41: 21.138 | D41: 32.76 | E41: ='Road only'!E41 -> 5 | F41: 27.76 | J41: 14 | K41: 153 | L41: 0.914
A42: 41 | B42: 27.76 | C42: 0 | D42: 27.76 | E42: ='Road only'!E42 -> 7 | F42: 20.76 | G42: =AVERAGE($E$2:$E$1001)*2 -> 21.138 | J42: 15 | K42: 90 | L42: 0.959
A43: 42 | B43: 20.76 | C43: 21.138 | D43: 41.898 | E43: ='Road only'!E43 -> 11 | F43: 30.898 | J43: 16 | K43: 53 | L43: 0.9855
A44: 43 | B44: 30.898 | C44: 0 | D44: 30.898 | E44: ='Road only'!E44 -> 10 | F44: 20.898 | G44: =AVERAGE($E$2:$E$1001)*2 -> 21.138 | J44: 17 | K44: 20 | L44: 0.9955
A45: 44 | B45: 20.898 | C45: 21.138 | D45: 42.036 | E45: ='Road only'!E45 -> 3 | F45: 39.036 | J45: 18 | K45: =COUNTIF($E$2:$E$2001,J45) -> 9 | L45: =K45/2000+L44 -> 1
A46: 45 | B46: 39.036 | C46: 0 | D46: 39.036 | E46: ='Road only'!E46 -> 13 | F46: 26.036 | G46: =AVERAGE($E$2:$E$1001)*2 -> 21.138
A47: 46 | B47: 26.036 | C47: 21.138 | D47: 47.174 | E47: ='Road only'!E47 -> 8 | F47: 39.174
A48: 47 | B48: 39.174 | C48: 0 | D48: 39.174 | E48: ='Road only'!E48 -> 15 | F48: 24.174 | G48: =AVERAGE($E$2:$E$1001)*2 -> 21.138
A49: 48 | B49: 24.174 | C49: 21.138 | D49: 45.312 | E49: ='Road only'!E49 -> 8 | F49: 37.312
A50: 49 | B50: 37.312 | C50: 0 | D50: 37.312 | E50: ='Road only'!E50 -> 16 | F50: 21.312 | G50: =AVERAGE($E$2:$E$1001)*2 -> 21.138
A51: 50 | B51: 21.312 | C51: 21.138 | D51: 42.45 | E51: ='Road only'!E51 -> 13 | F51: 29.45
A52: 51 | B52: 29.45 | C52: 0 | D52: 29.45 | E52: ='Road only'!E52 -> 7 | F52: 22.45 | G52: =AVERAGE($E$2:$E$1001)*2 -> 21.138
A53: 52 | B53: 22.45 | C53: 21.138 | D53: 43.588 | E53: ='Road only'!E53 -> 10 | F53: 33.588
A54: 53 | B54: 33.588 | C54: 0 | D54: 33.588 | E54: ='Road only'!E54 -> 7 | F54: 26.588 | G54: =AVERAGE($E$2:$E$1001)*2 -> 21.138
A55: 54 | B55: 26.588 | C55: 21.138 | D55: 47.726 | E55: ='Road only'!E55 -> 9 | F55: 38.726
A56: 55 | B56: 38.726 | C56: 0 | D56: 38.726 | E56: ='Road only'!E56 -> 8 | F56: 30.726 | G56: =AVERAGE($E$2:$E$1001)*2 -> 21.138
A57: 56 | B57: 30.726 | C57: 21.138 | D57: 51.864 | E57: ='Road only'!E57 -> 11 | F57: 40.864
A58: 57 | B58: 40.864 | C58: 0 | D58: 40.864 | E58: ='Road only'!E58 -> 8 | F58: 32.864 | G58: =AVERAGE($E$2:$E$1001)*2 -> 21.138
A59: 58 | B59: 32.864 | C59: 21.138 | D59: 54.002 | E59: ='Road only'!E59 -> 8 | F59: 46.002
A60: 59 | B60: 46.002 | C60: 0 | D60: 46.002 | E60: ='Road only'!E60 -> 14 | F60: 32.002 | G60: =AVERAGE($E$2:$E$1001)*2 -> 21.138
A61: 60 | B61: 32.002 | C61: 21.138 | D61: 53.14 | E61: ='Road only'!E61 -> 9 | F61: 44.14
A62: 61 | B62: 44.14 | C62: 0 | D62: 44.14 | E62: ='Road only'!E62 -> 8 | F62: 36.14 | G62: =AVERAGE($E$2:$E$1001)*2 -> 21.138
A63: 62 | B63: 36.14 | C63: 21.138 | D63: 57.278 | E63: ='Road only'!E63 -> 7 | F63: 50.278
A64: 63 | B64: 50.278 | C64: 0 | D64: 50.278 | E64: ='Road only'!E64 -> 12 | F64: 38.278 | G64: =AVERAGE($E$2:$E$1001)*2 -> 21.138
A65: 64 | B65: 38.278 | C65: 21.138 | D65: 59.416 | E65: ='Road only'!E65 -> 14 | F65: 45.416
A66: 65 | B66: 45.416 | C66: 0 | D66: 45.416 | E66: ='Road only'!E66 -> 6 | F66: 39.416 | G66: =AVERAGE($E$2:$E$1001)*2 -> 21.138
A67: 66 | B67: 39.416 | C67: 21.138 | D67: =B67+C67 -> 60.554 | E67: ='Road only'!E67 -> 6 | F67: =D67-E67 -> 54.554
A68: 67 | B68: =F67 -> 54.554 | C68: =G67 -> 0 | D68: 54.554 | E68: ='Road only'!E68 -> 6 | F68: 48.554 | G68: =AVERAGE($E$2:$E$1001)*2 -> 21.138
A69: 68 | B69: 48.554 | C69: 21.138 | D69: 69.692 | E69: ='Road only'!E69 -> 7 | F69: 62.692
A70: 69 | B70: 62.692 | C70: 0 | D70: 62.692 | E70: ='Road only'!E70 -> 16 | F70: 46.692 | G70: =AVERAGE($E$2:$E$1001)*2 -> 21.138
A71: 70 | B71: 46.692 | C71: 21.138 | D71: 67.83 | E71: ='Road only'!E71 -> 9 | F71: 58.83
A72: 71 | B72: 58.83 | C72: 0 | D72: 58.83 | E72: ='Road only'!E72 -> 15 | F72: 43.83 | G72: =AVERAGE($E$2:$E$1001)*2 -> 21.138
A73: 72 | B73: 43.83 | C73: 21.138 | D73: 64.968 | E73: ='Road only'!E73 -> 7 | F73: 57.968
A74: 73 | B74: 57.968 | C74: 0 | D74: 57.968 | E74: ='Road only'!E74 -> 14 | F74: 43.968 | G74: =AVERAGE($E$2:$E$1001)*2 -> 21.138
A75: 74 | B75: 43.968 | C75: 21.138 | D75: 65.106 | E75: ='Road only'!E75 -> 9 | F75: 56.106
A76: 75 | B76: 56.106 | C76: 0 | D76: 56.106 | E76: ='Road only'!E76 -> 14 | F76: 42.106 | G76: =AVERAGE($E$2:$E$1001)*2 -> 21.138
A77: 76 | B77: 42.106 | C77: 21.138 | D77: 63.244 | E77: ='Road only'!E77 -> 11 | F77: 52.244
A78: 77 | B78: 52.244 | C78: 0 | D78: 52.244 | E78: ='Road only'!E78 -> 15 | F78: 37.244 | G78: =AVERAGE($E$2:$E$1001)*2 -> 21.138
A79: 78 | B79: 37.244 | C79: 21.138 | D79: 58.382 | E79: ='Road only'!E79 -> 10 | F79: 48.382
A80: 79 | B80: 48.382 | C80: 0 | D80: 48.382 | E80: ='Road only'!E80 -> 8 | F80: 40.382 | G80: =AVERAGE($E$2:$E$1001)*2 -> 21.138
A81: 80 | B81: 40.382 | C81: 21.138 | D81: 61.52 | E81: ='Road only'!E81 -> 13 | F81: 48.52
A82: 81 | B82: 48.52 | C82: 0 | D82: 48.52 | E82: ='Road only'!E82 -> 9 | F82: 39.52 | G82: =AVERAGE($E$2:$E$1001)*2 -> 21.138
A83: 82 | B83: 39.52 | C83: 21.138 | D83: 60.658 | E83: ='Road only'!E83 -> 13 | F83: 47.658
A84: 83 | B84: 47.658 | C84: 0 | D84: 47.658 | E84: ='Road only'!E84 -> 11 | F84: 36.658 | G84: =AVERAGE($E$2:$E$1001)*2 -> 21.138
A85: 84 | B85: 36.658 | C85: 21.138 | D85: 57.796 | E85: ='Road only'!E85 -> 10 | F85: 47.796
A86: 85 | B86: 47.796 | C86: 0 | D86: 47.796 | E86: ='Road only'!E86 -> 8 | F86: 39.796 | G86: =AVERAGE($E$2:$E$1001)*2 -> 21.138
A87: 86 | B87: 39.796 | C87: 21.138 | D87: 60.934 | E87: ='Road only'!E87 -> 11 | F87: 49.934
A88: 87 | B88: 49.934 | C88: 0 | D88: 49.934 | E88: ='Road only'!E88 -> 14 | F88: 35.934 | G88: =AVERAGE($E$2:$E$1001)*2 -> 21.138
A89: 88 | B89: 35.934 | C89: 21.138 | D89: 57.072 | E89: ='Road only'!E89 -> 11 | F89: 46.072
A90: 89 | B90: 46.072 | C90: 0 | D90: 46.072 | E90: ='Road only'!E90 -> 12 | F90: 34.072 | G90: =AVERAGE($E$2:$E$1001)*2 -> 21.138
A91: 90 | B91: 34.072 | C91: 21.138 | D91: 55.21 | E91: ='Road only'!E91 -> 14 | F91: 41.21
A92: 91 | B92: 41.21 | C92: 0 | D92: 41.21 | E92: ='Road only'!E92 -> 15 | F92: 26.21 | G92: =AVERAGE($E$2:$E$1001)*2 -> 21.138
A93: 92 | B93: 26.21 | C93: 21.138 | D93: 47.348 | E93: ='Road only'!E93 -> 6 | F93: 41.348
A94: 93 | B94: 41.348 | C94: 0 | D94: 41.348 | E94: ='Road only'!E94 -> 12 | F94: 29.348 | G94: =AVERAGE($E$2:$E$1001)*2 -> 21.138
A95: 94 | B95: 29.348 | C95: 21.138 | D95: 50.486 | E95: ='Road only'!E95 -> 9 | F95: 41.486
A96: 95 | B96: 41.486 | C96: 0 | D96: 41.486 | E96: ='Road only'!E96 -> 14 | F96: 27.486 | G96: =AVERAGE($E$2:$E$1001)*2 -> 21.138
A97: 96 | B97: 27.486 | C97: 21.138 | D97: 48.624 | E97: ='Road only'!E97 -> 13 | F97: 35.624
A98: 97 | B98: 35.624 | C98: 0 | D98: 35.624 | E98: ='Road only'!E98 -> 13 | F98: 22.624 | G98: =AVERAGE($E$2:$E$1001)*2 -> 21.138
A99: 98 | B99: 22.624 | C99: 21.138 | D99: 43.762 | E99: ='Road only'!E99 -> 8 | F99: 35.762
A100: 99 | B100: 35.762 | C100: 0 | D100: 35.762 | E100: ='Road only'!E100 -> 15 | F100: 20.762 | G100: =AVERAGE($E$2:$E$1001)*2 -> 21.138
A101: 100 | B101: 20.762 | C101: 21.138 | D101: 41.9 | E101: ='Road only'!E101 -> 14 | F101: 27.9
A102: 101 | B102: =F101 -> 27.9 | C102: 0 | D102: 27.9 | E102: ='Road only'!E102 -> 5 | F102: 22.9 | G102: =AVERAGE($E$2:$E$1001)*2 -> 21.138
A103: 102 | B103: 22.9 | C103: 21.138 | D103: 44.038 | E103: ='Road only'!E103 -> 9 | F103: 35.038
A104: 103 | B104: 35.038 | C104: 0 | D104: 35.038 | E104: ='Road only'!E104 -> 7 | F104: 28.038 | G104: =AVERAGE($E$2:$E$1001)*2 -> 21.138
A105: 104 | B105: 28.038 | C105: 21.138 | D105: 49.176 | E105: ='Road only'!E105 -> 10 | F105: 39.176
A106: 105 | B106: 39.176 | C106: 0 | D106: 39.176 | E106: ='Road only'!E106 -> 9 | F106: 30.176 | G106: =AVERAGE($E$2:$E$1001)*2 -> 21.138
A107: 106 | B107: 30.176 | C107: 21.138 | D107: 51.314 | E107: ='Road only'!E107 -> 9 | F107: 42.314
A108: 107 | B108: 42.314 | C108: 0 | D108: 42.314 | E108: ='Road only'!E108 -> 10 | F108: 32.314 | G108: =AVERAGE($E$2:$E$1001)*2 -> 21.138
A109: 108 | B109: 32.314 | C109: 21.138 | D109: 53.452 | E109: ='Road only'!E109 -> 14 | F109: 39.452
A110: 109 | B110: 39.452 | C110: 0 | D110: 39.452 | E110: ='Road only'!E110 -> 15 | F110: 24.452 | G110: =AVERAGE($E$2:$E$1001)*2 -> 21.138
A111: 110 | B111: 24.452 | C111: 21.138 | D111: 45.59 | E111: ='Road only'!E111 -> 11 | F111: 34.59
A112: 111 | B112: 34.59 | C112: 0 | D112: 34.59 | E112: ='Road only'!E112 -> 7 | F112: 27.59 | G112: =AVERAGE($E$2:$E$1001)*2 -> 21.138
A113: 112 | B113: 27.59 | C113: 21.138 | D113: 48.728 | E113: ='Road only'!E113 -> 13 | F113: 35.728
A114: 113 | B114: 35.728 | C114: 0 | D114: 35.728 | E114: ='Road only'!E114 -> 4 | F114: 31.728 | G114: =AVERAGE($E$2:$E$1001)*2 -> 21.138
A115: 114 | B115: 31.728 | C115: 21.138 | D115: 52.866 | E115: ='Road only'!E115 -> 9 | F115: 43.866
A116: 115 | B116: 43.866 | C116: 0 | D116: 43.866 | E116: ='Road only'!E116 -> 12 | F116: 31.866 | G116: =AVERAGE($E$2:$E$1001)*2 -> 21.138
A117: 116 | B117: 31.866 | C117: 21.138 | D117: 53.004 | E117: ='Road only'!E117 -> 18 | F117: 35.004
A118: 117 | B118: 35.004 | C118: 0 | D118: 35.004 | E118: ='Road only'!E118 -> 7 | F118: 28.004 | G118: =AVERAGE($E$2:$E$1001)*2 -> 21.138
A119: 118 | B119: 28.004 | C119: 21.138 | D119: 49.142 | E119: ='Road only'!E119 -> 5 | F119: 44.142
A120: 119 | B120: 44.142 | C120: 0 | D120: 44.142 | E120: ='Road only'!E120 -> 9 | F120: 35.142 | G120: =AVERAGE($E$2:$E$1001)*2 -> 21.138
A121: 120 | B121: 35.142 | C121: 21.138 | D121: 56.28 | E121: ='Road only'!E121 -> 16 | F121: 40.28
A122: 121 | B122: 40.28 | C122: 0 | D122: 40.28 | E122: ='Road only'!E122 -> 10 | F122: 30.28 | G122: =AVERAGE($E$2:$E$1001)*2 -> 21.138
A123: 122 | B123: 30.28 | C123: 21.138 | D123: 51.418 | E123: ='Road only'!E123 -> 10 | F123: 41.418
A124: 123 | B124: 41.418 | C124: 0 | D124: 41.418 | E124: ='Road only'!E124 -> 8 | F124: 33.418 | G124: =AVERAGE($E$2:$E$1001)*2 -> 21.138
A125: 124 | B125: 33.418 | C125: 21.138 | D125: 54.556 | E125: ='Road only'!E125 -> 13 | F125: 41.556
A126: 125 | B126: 41.556 | C126: 0 | D126: 41.556 | E126: ='Road only'!E126 -> 12 | F126: 29.556 | G126: =AVERAGE($E$2:$E$1001)*2 -> 21.138
A127: 126 | B127: 29.556 | C127: 21.138 | D127: 50.694 | E127: ='Road only'!E127 -> 10 | F127: 40.694
A128: 127 | B128: 40.694 | C128: 0 | D128: 40.694 | E128: ='Road only'!E128 -> 14 | F128: 26.694 | G128: =AVERAGE($E$2:$E$1001)*2 -> 21.138
A129: 128 | B129: 26.694 | C129: 21.138 | D129: 47.832 | E129: ='Road only'!E129 -> 6 | F129: 41.832
A130: 129 | B130: 41.832 | C130: 0 | D130: 41.832 | E130: ='Road only'!E130 -> 13 | F130: 28.832 | G130: =AVERAGE($E$2:$E$1001)*2 -> 21.138
A131: 130 | B131: 28.832 | C131: 21.138 | D131: =B131+C131 -> 49.97 | E131: ='Road only'!E131 -> 9 | F131: =D131-E131 -> 40.97
A132: 131 | B132: 40.97 | C132: =G131 -> 0 | D132: 40.97 | E132: ='Road only'!E132 -> 9 | F132: 31.97 | G132: =AVERAGE($E$2:$E$1001)*2 -> 21.138
A133: 132 | B133: 31.97 | C133: 21.138 | D133: 53.108 | E133: ='Road only'!E133 -> 8 | F133: 45.108
A134: 133 | B134: 45.108 | C134: 0 | D134: 45.108 | E134: ='Road only'!E134 -> 12 | F134: 33.108 | G134: =AVERAGE($E$2:$E$1001)*2 -> 21.138
A135: 134 | B135: 33.108 | C135: 21.138 | D135: 54.246 | E135: ='Road only'!E135 -> 11 | F135: 43.246
A136: 135 | B136: 43.246 | C136: 0 | D136: 43.246 | E136: ='Road only'!E136 -> 16 | F136: 27.246 | G136: =AVERAGE($E$2:$E$1001)*2 -> 21.138
A137: 136 | B137: 27.246 | C137: 21.138 | D137: 48.384 | E137: ='Road only'!E137 -> 11 | F137: 37.384
A138: 137 | B138: 37.384 | C138: 0 | D138: 37.384 | E138: ='Road only'!E138 -> 14 | F138: 23.384 | G138: =AVERAGE($E$2:$E$1001)*2 -> 21.138
A139: 138 | B139: 23.384 | C139: 21.138 | D139: 44.522 | E139: ='Road only'!E139 -> 8 | F139: 36.522
A140: 139 | B140: 36.522 | C140: 0 | D140: 36.522 | E140: ='Road only'!E140 -> 9 | F140: 27.522 | G140: =AVERAGE($E$2:$E$1001)*2 -> 21.138
A141: 140 | B141: 27.522 | C141: 21.138 | D141: 48.66 | E141: ='Road only'!E141 -> 10 | F141: 38.66
A142: 141 | B142: 38.66 | C142: 0 | D142: 38.66 | E142: ='Road only'!E142 -> 13 | F142: 25.66 | G142: =AVERAGE($E$2:$E$1001)*2 -> 21.138
A143: 142 | B143: 25.66 | C143: 21.138 | D143: 46.798 | E143: ='Road only'!E143 -> 5 | F143: 41.798
A144: 143 | B144: 41.798 | C144: 0 | D144: 41.798 | E144: ='Road only'!E144 -> 13 | F144: 28.798 | G144: =AVERAGE($E$2:$E$1001)*2 -> 21.138
A145: 144 | B145: 28.798 | C145: 21.138 | D145: 49.936 | E145: ='Road only'!E145 -> 12 | F145: 37.936
A146: 145 | B146: 37.936 | C146: 0 | D146: 37.936 | E146: ='Road only'!E146 -> 12 | F146: 25.936 | G146: =AVERAGE($E$2:$E$1001)*2 -> 21.138
A147: 146 | B147: 25.936 | C147: 21.138 | D147: 47.074 | E147: ='Road only'!E147 -> 8 | F147: 39.074
A148: 147 | B148: 39.074 | C148: 0 | D148: 39.074 | E148: ='Road only'!E148 -> 8 | F148: 31.074 | G148: =AVERAGE($E$2:$E$1001)*2 -> 21.138
A149: 148 | B149: 31.074 | C149: 21.138 | D149: 52.212 | E149: ='Road only'!E149 -> 15 | F149: 37.212
A150: 149 | B150: 37.212 | C150: 0 | D150: 37.212 | E150: ='Road only'!E150 -> 11 | F150: 26.212 | G150: =AVERAGE($E$2:$E$1001)*2 -> 21.138
A151: 150 | B151: 26.212 | C151: 21.138 | D151: 47.35 | E151: ='Road only'!E151 -> 11 | F151: 36.35
A152: 151 | B152: 36.35 | C152: 0 | D152: 36.35 | E152: ='Road only'!E152 -> 15 | F152: 21.35 | G152: =AVERAGE($E$2:$E$1001)*2 -> 21.138
A153: 152 | B153: 21.35 | C153: 21.138 | D153: 42.488 | E153: ='Road only'!E153 -> 8 | F153: 34.488
A154: 153 | B154: 34.488 | C154: 0 | D154: 34.488 | E154: ='Road only'!E154 -> 12 | F154: 22.488 | G154: =AVERAGE($E$2:$E$1001)*2 -> 21.138
A155: 154 | B155: 22.488 | C155: 21.138 | D155: 43.626 | E155: ='Road only'!E155 -> 13 | F155: 30.626
A156: 155 | B156: 30.626 | C156: 0 | D156: 30.626 | E156: ='Road only'!E156 -> 9 | F156: 21.626 | G156: =AVERAGE($E$2:$E$1001)*2 -> 21.138
A157: 156 | B157: 21.626 | C157: 21.138 | D157: 42.764 | E157: ='Road only'!E157 -> 13 | F157: 29.764
A158: 157 | B158: 29.764 | C158: 0 | D158: 29.764 | E158: ='Road only'!E158 -> 11 | F158: 18.764 | G158: =AVERAGE($E$2:$E$1001)*2 -> 21.138
A159: 158 | B159: 18.764 | C159: 21.138 | D159: 39.902 | E159: ='Road only'!E159 -> 8 | F159: 31.902
A160: 159 | B160: 31.902 | C160: 0 | D160: 31.902 | E160: ='Road only'!E160 -> 7 | F160: 24.902 | G160: =AVERAGE($E$2:$E$1001)*2 -> 21.138
A161: 160 | B161: 24.902 | C161: 21.138 | D161: 46.04 | E161: ='Road only'!E161 -> 14 | F161: 32.04
A162: 161 | B162: 32.04 | C162: 0 | D162: 32.04 | E162: ='Road only'!E162 -> 11 | F162: 21.04 | G162: =AVERAGE($E$2:$E$1001)*2 -> 21.138
A163: 162 | B163: 21.04 | C163: 21.138 | D163: 42.178 | E163: ='Road only'!E163 -> 12 | F163: 30.178
A164: 163 | B164: 30.178 | C164: 0 | D164: 30.178 | E164: ='Road only'!E164 -> 12 | F164: 18.178 | G164: =AVERAGE($E$2:$E$1001)*2 -> 21.138
A165: 164 | B165: 18.178 | C165: 21.138 | D165: 39.316 | E165: ='Road only'!E165 -> 15 | F165: 24.316
A166: 165 | B166: =F165 -> 24.316 | C166: 0 | D166: 24.316 | E166: ='Road only'!E166 -> 9 | F166: 15.316 | G166: =AVERAGE($E$2:$E$1001)*2 -> 21.138
A167: 166 | B167: 15.316 | C167: 21.138 | D167: 36.454 | E167: ='Road only'!E167 -> 13 | F167: 23.454
A168: 167 | B168: 23.454 | C168: 0 | D168: 23.454 | E168: ='Road only'!E168 -> 8 | F168: 15.454 | G168: =AVERAGE($E$2:$E$1001)*2 -> 21.138
A169: 168 | B169: 15.454 | C169: 21.138 | D169: 36.592 | E169: ='Road only'!E169 -> 13 | F169: 23.592
A170: 169 | B170: 23.592 | C170: 0 | D170: 23.592 | E170: ='Road only'!E170 -> 11 | F170: 12.592 | G170: =AVERAGE($E$2:$E$1001)*2 -> 21.138
A171: 170 | B171: 12.592 | C171: 21.138 | D171: 33.73 | E171: ='Road only'!E171 -> 16 | F171: 17.73
A172: 171 | B172: 17.73 | C172: 0 | D172: 17.73 | E172: ='Road only'!E172 -> 12 | F172: 5.73 | G172: =AVERAGE($E$2:$E$1001)*2 -> 21.138
A173: 172 | B173: 5.73 | C173: 21.138 | D173: 26.868 | E173: ='Road only'!E173 -> 11 | F173: 15.868
A174: 173 | B174: 15.868 | C174: 0 | D174: 15.868 | E174: ='Road only'!E174 -> 9 | F174: 6.868 | G174: =AVERAGE($E$2:$E$1001)*2 -> 21.138
A175: 174 | B175: 6.868 | C175: 21.138 | D175: 28.006 | E175: ='Road only'!E175 -> 7 | F175: 21.006
A176: 175 | B176: 21.006 | C176: 0 | D176: 21.006 | E176: ='Road only'!E176 -> 12 | F176: 9.006 | G176: =AVERAGE($E$2:$E$1001)*2 -> 21.138
A177: 176 | B177: 9.006 | C177: 21.138 | D177: 30.144 | E177: ='Road only'!E177 -> 12 | F177: 18.144
A178: 177 | B178: 18.144 | C178: 0 | D178: 18.144 | E178: ='Road only'!E178 -> 11 | F178: 7.144 | G178: =AVERAGE($E$2:$E$1001)*2 -> 21.138
A179: 178 | B179: 7.144 | C179: 21.138 | D179: 28.282 | E179: ='Road only'!E179 -> 18 | F179: 10.282
A180: 179 | B180: 10.282 | C180: 0 | D180: 10.282 | E180: ='Road only'!E180 -> 15 | F180: -4.718 | G180: =AVERAGE($E$2:$E$1001)*2 -> 21.138
A181: 180 | B181: -4.718 | C181: 21.138 | D181: 16.42 | E181: ='Road only'!E181 -> 11 | F181: 5.42
A182: 181 | B182: 5.42 | C182: 0 | D182: 5.42 | E182: ='Road only'!E182 -> 11 | F182: -5.58 | G182: =AVERAGE($E$2:$E$1001)*2 -> 21.138
A183: 182 | B183: -5.58 | C183: 21.138 | D183: 15.558 | E183: ='Road only'!E183 -> 12 | F183: 3.558
A184: 183 | B184: 3.558 | C184: 0 | D184: 3.558 | E184: ='Road only'!E184 -> 9 | F184: -5.442 | G184: =AVERAGE($E$2:$E$1001)*2 -> 21.138
A185: 184 | B185: -5.442 | C185: 21.138 | D185: 15.696 | E185: ='Road only'!E185 -> 13 | F185: 2.696
A186: 185 | B186: 2.696 | C186: 0 | D186: 2.696 | E186: ='Road only'!E186 -> 11 | F186: -8.304 | G186: =AVERAGE($E$2:$E$1001)*2 -> 21.138
A187: 186 | B187: -8.304 | C187: 21.138 | D187: 12.834 | E187: ='Road only'!E187 -> 11 | F187: 1.834
A188: 187 | B188: 1.834 | C188: 0 | D188: 1.834 | E188: ='Road only'!E188 -> 14 | F188: -12.166 | G188: =AVERAGE($E$2:$E$1001)*2 -> 21.138
A189: 188 | B189: -12.166 | C189: 21.138 | D189: 8.972 | E189: ='Road only'!E189 -> 7 | F189: 1.972
A190: 189 | B190: 1.972 | C190: 0 | D190: 1.972 | E190: ='Road only'!E190 -> 9 | F190: -7.028 | G190: =AVERAGE($E$2:$E$1001)*2 -> 21.138
A191: 190 | B191: -7.028 | C191: 21.138 | D191: 14.11 | E191: ='Road only'!E191 -> 9 | F191: 5.11
A192: 191 | B192: 5.11 | C192: 0 | D192: 5.11 | E192: ='Road only'!E192 -> 12 | F192: -6.89 | G192: =AVERAGE($E$2:$E$1001)*2 -> 21.138
A193: 192 | B193: -6.89 | C193: 21.138 | D193: 14.248 | E193: ='Road only'!E193 -> 13 | F193: 1.248
A194: 193 | B194: 1.248 | C194: 0 | D194: 1.248 | E194: ='Road only'!E194 -> 13 | F194: -11.752 | G194: =AVERAGE($E$2:$E$1001)*2 -> 21.138
A195: 194 | B195: -11.752 | C195: 21.138 | D195: =B195+C195 -> 9.386 | E195: ='Road only'!E195 -> 8 | F195: =D195-E195 -> 1.386
A196: 195 | B196: 1.386 | C196: =G195 -> 0 | D196: 1.386 | E196: ='Road only'!E196 -> 13 | F196: -11.614 | G196: =AVERAGE($E$2:$E$1001)*2 -> 21.138
A197: 196 | B197: -11.614 | C197: 21.138 | D197: 9.524 | E197: ='Road only'!E197 -> 10 | F197: -0.476
A198: 197 | B198: -0.476 | C198: 0 | D198: -0.476 | E198: ='Road only'!E198 -> 11 | F198: -11.476 | G198: =AVERAGE($E$2:$E$1001)*2 -> 21.138
A199: 198 | B199: -11.476 | C199: 21.138 | D199: 9.662 | E199: ='Road only'!E199 -> 12 | F199: -2.338
A200: 199 | B200: -2.338 | C200: 0 | D200: -2.338 | E200: ='Road only'!E200 -> 8 | F200: -10.338 | G200: =AVERAGE($E$2:$E$1001)*2 -> 21.138
... 1801 more rows

Sheet Synchromodal lower bound method
A1: Period | B1: Start Inv | C1: Arrival | D1: Inv before demand | E1: Demand | F1: Inv after demand | G1: Order (Road) | H1: Order (RAIL)
A2: 1 | B2: ='Road only'!B2 -> 15 | C2: 0 | D2: =B2+C2 -> 15 | E2: ='Road only'!E2 -> 9 | F2: =D2-E2 -> 6 | G2: =D2-F2-H2 -> 3 | H2: 6 | J2: Costs
A3: 2 | B3: =F2 -> 6 | C3: =H2+G2 -> 9 | D3: =B3+C3 -> 15 | E3: ='Road only'!E3 -> 13 | F3: =D3-E3 -> 2 | G3: =D3-F3-H3 -> 13 | J3: Unit inventory holding cost | M3: ='Road only'!M3 -> 136
A4: 3 | B4: =F3 -> 2 | C4: =H3+G3 -> 13 | D4: 15 | E4: ='Road only'!E4 -> 10 | F4: 5 | G4: 4 | H4: 6 | J4: Unit inventory back order cost | M4: ='Road only'!M4 -> 2584
A5: 4 | B5: 5 | C5: 10 | D5: 15 | E5: ='Road only'!E5 -> 7 | F5: 8 | G5: 7
A6: 5 | B6: 8 | C6: 7 | D6: 15 | E6: ='Road only'!E6 -> 11 | F6: 4 | G6: 5 | H6: 6 | J6: Unit transport cost Road | M6: ='Road only'!M6 -> 400
A7: 6 | B7: 4 | C7: 11 | D7: 15 | E7: ='Road only'!E7 -> 12 | F7: 3 | G7: 12 | J7: Unit transport cost Rail | M7: ='Road only'!M7 -> 350
A8: 7 | B8: 3 | C8: 12 | D8: 15 | E8: ='Road only'!E8 -> 8 | F8: 7 | G8: 2 | H8: 6
A9: 8 | B9: 7 | C9: 8 | D9: 15 | E9: ='Road only'!E9 -> 7 | F9: 8 | G9: 7 | J9: Avg Tsp Cost per period | M9: =SUM(G2:G2001)/2000*M6+SUM(H2:H2001)/2000*M7 -> 4057.8
A10: 9 | B10: 8 | C10: 7 | D10: 15 | E10: ='Road only'!E10 -> 15 | F10: 0 | G10: 9 | H10: 6 | J10: Avg Inv holding cst per period | M10: =SUMIF(F2:F2002,">0")/2000*M3 -> 617.508
A11: 10 | B11: 0 | C11: 15 | D11: 15 | E11: ='Road only'!E11 -> 16 | F11: -1 | G11: 16 | J11: Avg Inv backorder cst per period | M11: =SUMIF(F2:F2001,"<0")/2000*M4*(-1) -> 155.04
A12: 11 | B12: -1 | C12: 16 | D12: 15 | E12: ='Road only'!E12 -> 7 | F12: 8 | G12: 1 | H12: 6
A13: 12 | B13: 8 | C13: 7 | D13: 15 | E13: ='Road only'!E13 -> 10 | F13: 5 | G13: 10
A14: 13 | B14: 5 | C14: 10 | D14: 15 | E14: ='Road only'!E14 -> 10 | F14: 5 | G14: 4 | H14: 6 | J14: Avg ttl cost per period | M14: =SUM(M9:M12) -> 4830.348
A15: 14 | B15: 5 | C15: 10 | D15: 15 | E15: ='Road only'!E15 -> 9 | F15: 6 | G15: 9
A16: 15 | B16: 6 | C16: 9 | D16: 15 | E16: ='Road only'!E16 -> 8 | F16: 7 | G16: 2 | H16: 6
A17: 16 | B17: 7 | C17: 8 | D17: 15 | E17: ='Road only'!E17 -> 14 | F17: 1 | G17: 14 | J17: Emissions
A18: 17 | B18: 1 | C18: 14 | D18: 15 | E18: ='Road only'!E18 -> 8 | F18: 7 | G18: 2 | H18: 6 | J18: Unit emission Road | M18: ='Road only'!M18 -> 0.72
A19: 18 | B19: 7 | C19: 8 | D19: 15 | E19: ='Road only'!E19 -> 9 | F19: 6 | G19: 9 | J19: Unit emission Rail | M19: ='Road only'!M19 -> 0.2
A20: 19 | B20: 6 | C20: 9 | D20: 15 | E20: ='Road only'!E20 -> 11 | F20: 4 | G20: 5 | H20: 6
A21: 20 | B21: 4 | C21: 11 | D21: 15 | E21: ='Road only'!E21 -> 16 | F21: -1 | G21: 16 | J21: Avg emission per period (Road&Rail) | M21: =SUM(H2:H2001)*M19/2000+SUM(G2:G2001)*M18/2000 -> 6.01404
A22: 21 | B22: -1 | C22: 16 | D22: 15 | E22: ='Road only'!E22 -> 12 | F22: 3 | G22: 6 | H22: 6
A23: 22 | B23: 3 | C23: 12 | D23: 15 | E23: ='Road only'!E23 -> 12 | F23: 3 | G23: 12
A24: 23 | B24: 3 | C24: 12 | D24: 15 | E24: ='Road only'!E24 -> 16 | F24: -1 | G24: 10 | H24: 6 | J24: Service level
A25: 24 | B25: -1 | C25: 16 | D25: 15 | E25: ='Road only'!E25 -> 10 | F25: 5 | G25: 10 | J25: In-stock Probability at the DC | M25: =1-COUNTIF(F2:F2001,"<0")/2000 -> 0.959
A26: 25 | B26: 5 | C26: 10 | D26: 15 | E26: ='Road only'!E26 -> 11 | F26: 4 | G26: 5 | H26: 6
A27: 26 | B27: 4 | C27: 11 | D27: 15 | E27: ='Road only'!E27 -> 11 | F27: 4 | G27: 11
A28: 27 | B28: 4 | C28: 11 | D28: 15 | E28: ='Road only'!E28 -> 11 | F28: 4 | G28: 5 | H28: 6 | J28: Demand Histogram
A29: 28 | B29: 4 | C29: 11 | D29: 15 | E29: ='Road only'!E29 -> 10 | F29: 5 | G29: 10 | J29: Bin | K29: Frequency | L29: Cumulative %
A30: 29 | B30: 5 | C30: 10 | D30: 15 | E30: ='Road only'!E30 -> 8 | F30: 7 | G30: 2 | H30: 6 | J30: 3 | K30: =COUNTIF($E$2:$E$2001,J30) -> 9 | L30: =K30/2000 -> 0.0045
A31: 30 | B31: 7 | C31: 8 | D31: 15 | E31: ='Road only'!E31 -> 9 | F31: 6 | G31: 9 | J31: 4 | K31: =COUNTIF($E$2:$E$2001,J31) -> 32 | L31: =K31/2000+L30 -> 0.0205
A32: 31 | B32: 6 | C32: 9 | D32: 15 | E32: ='Road only'!E32 -> 6 | F32: 9 | G32: 0 | H32: 6 | J32: 5 | K32: 48 | L32: =K32/2000+L31 -> 0.0445
A33: 32 | B33: 9 | C33: 6 | D33: 15 | E33: ='Road only'!E33 -> 9 | F33: 6 | G33: 9 | J33: 6 | K33: 91 | L33: 0.09
A34: 33 | B34: 6 | C34: 9 | D34: 15 | E34: ='Road only'!E34 -> 13 | F34: 2 | G34: 7 | H34: 6 | J34: 7 | K34: 129 | L34: 0.1545
A35: 34 | B35: 2 | C35: 13 | D35: 15 | E35: ='Road only'!E35 -> 9 | F35: 6 | G35: 9 | J35: 8 | K35: 209 | L35: 0.259
A36: 35 | B36: 6 | C36: 9 | D36: 15 | E36: ='Road only'!E36 -> 7 | F36: 8 | G36: 1 | H36: 6 | J36: 9 | K36: 235 | L36: 0.3765
A37: 36 | B37: 8 | C37: 7 | D37: 15 | E37: ='Road only'!E37 -> 5 | F37: 10 | G37: 5 | J37: 10 | K37: 243 | L37: 0.498
A38: 37 | B38: 10 | C38: 5 | D38: 15 | E38: ='Road only'!E38 -> 11 | F38: 4 | G38: 5 | H38: 6 | J38: 11 | K38: 232 | L38: 0.614
A39: 38 | B39: 4 | C39: 11 | D39: 15 | E39: ='Road only'!E39 -> 11 | F39: 4 | G39: 11 | J39: 12 | K39: 227 | L39: 0.7275
A40: 39 | B40: 4 | C40: 11 | D40: 15 | E40: ='Road only'!E40 -> 14 | F40: 1 | G40: 8 | H40: 6 | J40: 13 | K40: 220 | L40: 0.8375
A41: 40 | B41: 1 | C41: 14 | D41: 15 | E41: ='Road only'!E41 -> 5 | F41: 10 | G41: 5 | J41: 14 | K41: 153 | L41: 0.914
A42: 41 | B42: 10 | C42: 5 | D42: 15 | E42: ='Road only'!E42 -> 7 | F42: 8 | G42: 1 | H42: 6 | J42: 15 | K42: 90 | L42: 0.959
A43: 42 | B43: 8 | C43: 7 | D43: 15 | E43: ='Road only'!E43 -> 11 | F43: 4 | G43: 11 | J43: 16 | K43: 53 | L43: 0.9855
A44: 43 | B44: 4 | C44: 11 | D44: 15 | E44: ='Road only'!E44 -> 10 | F44: 5 | G44: 4 | H44: 6 | J44: 17 | K44: 20 | L44: 0.9955
A45: 44 | B45: 5 | C45: 10 | D45: 15 | E45: ='Road only'!E45 -> 3 | F45: 12 | G45: 3 | J45: 18 | K45: =COUNTIF($E$2:$E$2001,J45) -> 9 | L45: =K45/2000+L44 -> 1
A46: 45 | B46: 12 | C46: 3 | D46: 15 | E46: ='Road only'!E46 -> 13 | F46: 2 | G46: 7 | H46: 6
A47: 46 | B47: 2 | C47: 13 | D47: 15 | E47: ='Road only'!E47 -> 8 | F47: 7 | G47: 8
A48: 47 | B48: 7 | C48: 8 | D48: 15 | E48: ='Road only'!E48 -> 15 | F48: 0 | G48: 9 | H48: 6
A49: 48 | B49: 0 | C49: 15 | D49: 15 | E49: ='Road only'!E49 -> 8 | F49: 7 | G49: 8
A50: 49 | B50: 7 | C50: 8 | D50: 15 | E50: ='Road only'!E50 -> 16 | F50: -1 | G50: 10 | H50: 6
A51: 50 | B51: -1 | C51: 16 | D51: 15 | E51: ='Road only'!E51 -> 13 | F51: 2 | G51: 13
A52: 51 | B52: 2 | C52: 13 | D52: 15 | E52: ='Road only'!E52 -> 7 | F52: 8 | G52: 1 | H52: 6
A53: 52 | B53: 8 | C53: 7 | D53: 15 | E53: ='Road only'!E53 -> 10 | F53: 5 | G53: 10
A54: 53 | B54: 5 | C54: 10 | D54: 15 | E54: ='Road only'!E54 -> 7 | F54: 8 | G54: 1 | H54: 6
A55: 54 | B55: 8 | C55: 7 | D55: 15 | E55: ='Road only'!E55 -> 9 | F55: 6 | G55: 9
A56: 55 | B56: 6 | C56: 9 | D56: 15 | E56: ='Road only'!E56 -> 8 | F56: 7 | G56: 2 | H56: 6
A57: 56 | B57: 7 | C57: 8 | D57: 15 | E57: ='Road only'!E57 -> 11 | F57: 4 | G57: 11
A58: 57 | B58: 4 | C58: 11 | D58: 15 | E58: ='Road only'!E58 -> 8 | F58: 7 | G58: 2 | H58: 6
A59: 58 | B59: 7 | C59: 8 | D59: 15 | E59: ='Road only'!E59 -> 8 | F59: 7 | G59: 8
A60: 59 | B60: 7 | C60: 8 | D60: 15 | E60: ='Road only'!E60 -> 14 | F60: 1 | G60: 8 | H60: 6
A61: 60 | B61: 1 | C61: 14 | D61: 15 | E61: ='Road only'!E61 -> 9 | F61: 6 | G61: 9
A62: 61 | B62: 6 | C62: 9 | D62: 15 | E62: ='Road only'!E62 -> 8 | F62: 7 | G62: 2 | H62: 6
A63: 62 | B63: 7 | C63: 8 | D63: 15 | E63: ='Road only'!E63 -> 7 | F63: 8 | G63: 7
A64: 63 | B64: 8 | C64: 7 | D64: 15 | E64: ='Road only'!E64 -> 12 | F64: 3 | G64: 6 | H64: 6
A65: 64 | B65: 3 | C65: 12 | D65: 15 | E65: ='Road only'!E65 -> 14 | F65: 1 | G65: 14
A66: 65 | B66: 1 | C66: 14 | D66: 15 | E66: ='Road only'!E66 -> 6 | F66: 9 | G66: 0 | H66: 6
A67: 66 | B67: 9 | C67: 6 | D67: =B67+C67 -> 15 | E67: ='Road only'!E67 -> 6 | F67: =D67-E67 -> 9 | G67: =D67-F67-H67 -> 6
A68: 67 | B68: =F67 -> 9 | C68: =H67+G67 -> 6 | D68: 15 | E68: ='Road only'!E68 -> 6 | F68: 9 | G68: 0 | H68: 6
A69: 68 | B69: 9 | C69: 6 | D69: 15 | E69: ='Road only'!E69 -> 7 | F69: 8 | G69: 7
A70: 69 | B70: 8 | C70: 7 | D70: 15 | E70: ='Road only'!E70 -> 16 | F70: -1 | G70: 10 | H70: 6
A71: 70 | B71: -1 | C71: 16 | D71: 15 | E71: ='Road only'!E71 -> 9 | F71: 6 | G71: 9
A72: 71 | B72: 6 | C72: 9 | D72: 15 | E72: ='Road only'!E72 -> 15 | F72: 0 | G72: 9 | H72: 6
A73: 72 | B73: 0 | C73: 15 | D73: 15 | E73: ='Road only'!E73 -> 7 | F73: 8 | G73: 7
A74: 73 | B74: 8 | C74: 7 | D74: 15 | E74: ='Road only'!E74 -> 14 | F74: 1 | G74: 8 | H74: 6
A75: 74 | B75: 1 | C75: 14 | D75: 15 | E75: ='Road only'!E75 -> 9 | F75: 6 | G75: 9
A76: 75 | B76: 6 | C76: 9 | D76: 15 | E76: ='Road only'!E76 -> 14 | F76: 1 | G76: 8 | H76: 6
A77: 76 | B77: 1 | C77: 14 | D77: 15 | E77: ='Road only'!E77 -> 11 | F77: 4 | G77: 11
A78: 77 | B78: 4 | C78: 11 | D78: 15 | E78: ='Road only'!E78 -> 15 | F78: 0 | G78: 9 | H78: 6
A79: 78 | B79: 0 | C79: 15 | D79: 15 | E79: ='Road only'!E79 -> 10 | F79: 5 | G79: 10
A80: 79 | B80: 5 | C80: 10 | D80: 15 | E80: ='Road only'!E80 -> 8 | F80: 7 | G80: 2 | H80: 6
A81: 80 | B81: 7 | C81: 8 | D81: 15 | E81: ='Road only'!E81 -> 13 | F81: 2 | G81: 13
A82: 81 | B82: 2 | C82: 13 | D82: 15 | E82: ='Road only'!E82 -> 9 | F82: 6 | G82: 3 | H82: 6
A83: 82 | B83: 6 | C83: 9 | D83: 15 | E83: ='Road only'!E83 -> 13 | F83: 2 | G83: 13
A84: 83 | B84: 2 | C84: 13 | D84: 15 | E84: ='Road only'!E84 -> 11 | F84: 4 | G84: 5 | H84: 6
A85: 84 | B85: 4 | C85: 11 | D85: 15 | E85: ='Road only'!E85 -> 10 | F85: 5 | G85: 10
A86: 85 | B86: 5 | C86: 10 | D86: 15 | E86: ='Road only'!E86 -> 8 | F86: 7 | G86: 2 | H86: 6
A87: 86 | B87: 7 | C87: 8 | D87: 15 | E87: ='Road only'!E87 -> 11 | F87: 4 | G87: 11
A88: 87 | B88: 4 | C88: 11 | D88: 15 | E88: ='Road only'!E88 -> 14 | F88: 1 | G88: 8 | H88: 6
A89: 88 | B89: 1 | C89: 14 | D89: 15 | E89: ='Road only'!E89 -> 11 | F89: 4 | G89: 11
A90: 89 | B90: 4 | C90: 11 | D90: 15 | E90: ='Road only'!E90 -> 12 | F90: 3 | G90: 6 | H90: 6
A91: 90 | B91: 3 | C91: 12 | D91: 15 | E91: ='Road only'!E91 -> 14 | F91: 1 | G91: 14
A92: 91 | B92: 1 | C92: 14 | D92: 15 | E92: ='Road only'!E92 -> 15 | F92: 0 | G92: 9 | H92: 6
A93: 92 | B93: 0 | C93: 15 | D93: 15 | E93: ='Road only'!E93 -> 6 | F93: 9 | G93: 6
A94: 93 | B94: 9 | C94: 6 | D94: 15 | E94: ='Road only'!E94 -> 12 | F94: 3 | G94: 6 | H94: 6
A95: 94 | B95: 3 | C95: 12 | D95: 15 | E95: ='Road only'!E95 -> 9 | F95: 6 | G95: 9
A96: 95 | B96: 6 | C96: 9 | D96: 15 | E96: ='Road only'!E96 -> 14 | F96: 1 | G96: 8 | H96: 6
A97: 96 | B97: 1 | C97: 14 | D97: 15 | E97: ='Road only'!E97 -> 13 | F97: 2 | G97: 13
A98: 97 | B98: 2 | C98: 13 | D98: 15 | E98: ='Road only'!E98 -> 13 | F98: 2 | G98: 7 | H98: 6
A99: 98 | B99: 2 | C99: 13 | D99: 15 | E99: ='Road only'!E99 -> 8 | F99: 7 | G99: 8
A100: 99 | B100: 7 | C100: 8 | D100: 15 | E100: ='Road only'!E100 -> 15 | F100: 0 | G100: 9 | H100: 6
A101: 100 | B101: 0 | C101: 15 | D101: 15 | E101: ='Road only'!E101 -> 14 | F101: 1 | G101: 14
A102: 101 | B102: =F101 -> 1 | C102: 14 | D102: 15 | E102: ='Road only'!E102 -> 5 | F102: 10 | G102: -1 | H102: 6
A103: 102 | B103: 10 | C103: 5 | D103: 15 | E103: ='Road only'!E103 -> 9 | F103: 6 | G103: 9
A104: 103 | B104: 6 | C104: 9 | D104: 15 | E104: ='Road only'!E104 -> 7 | F104: 8 | G104: 1 | H104: 6
A105: 104 | B105: 8 | C105: 7 | D105: 15 | E105: ='Road only'!E105 -> 10 | F105: 5 | G105: 10
A106: 105 | B106: 5 | C106: 10 | D106: 15 | E106: ='Road only'!E106 -> 9 | F106: 6 | G106: 3 | H106: 6
A107: 106 | B107: 6 | C107: 9 | D107: 15 | E107: ='Road only'!E107 -> 9 | F107: 6 | G107: 9
A108: 107 | B108: 6 | C108: 9 | D108: 15 | E108: ='Road only'!E108 -> 10 | F108: 5 | G108: 4 | H108: 6
A109: 108 | B109: 5 | C109: 10 | D109: 15 | E109: ='Road only'!E109 -> 14 | F109: 1 | G109: 14
A110: 109 | B110: 1 | C110: 14 | D110: 15 | E110: ='Road only'!E110 -> 15 | F110: 0 | G110: 9 | H110: 6
A111: 110 | B111: 0 | C111: 15 | D111: 15 | E111: ='Road only'!E111 -> 11 | F111: 4 | G111: 11
A112: 111 | B112: 4 | C112: 11 | D112: 15 | E112: ='Road only'!E112 -> 7 | F112: 8 | G112: 1 | H112: 6
A113: 112 | B113: 8 | C113: 7 | D113: 15 | E113: ='Road only'!E113 -> 13 | F113: 2 | G113: 13
A114: 113 | B114: 2 | C114: 13 | D114: 15 | E114: ='Road only'!E114 -> 4 | F114: 11 | G114: -2 | H114: 6
A115: 114 | B115: 11 | C115: 4 | D115: 15 | E115: ='Road only'!E115 -> 9 | F115: 6 | G115: 9
A116: 115 | B116: 6 | C116: 9 | D116: 15 | E116: ='Road only'!E116 -> 12 | F116: 3 | G116: 6 | H116: 6
A117: 116 | B117: 3 | C117: 12 | D117: 15 | E117: ='Road only'!E117 -> 18 | F117: -3 | G117: 18
A118: 117 | B118: -3 | C118: 18 | D118: 15 | E118: ='Road only'!E118 -> 7 | F118: 8 | G118: 1 | H118: 6
A119: 118 | B119: 8 | C119: 7 | D119: 15 | E119: ='Road only'!E119 -> 5 | F119: 10 | G119: 5
A120: 119 | B120: 10 | C120: 5 | D120: 15 | E120: ='Road only'!E120 -> 9 | F120: 6 | G120: 3 | H120: 6
A121: 120 | B121: 6 | C121: 9 | D121: 15 | E121: ='Road only'!E121 -> 16 | F121: -1 | G121: 16
A122: 121 | B122: -1 | C122: 16 | D122: 15 | E122: ='Road only'!E122 -> 10 | F122: 5 | G122: 4 | H122: 6
A123: 122 | B123: 5 | C123: 10 | D123: 15 | E123: ='Road only'!E123 -> 10 | F123: 5 | G123: 10
A124: 123 | B124: 5 | C124: 10 | D124: 15 | E124: ='Road only'!E124 -> 8 | F124: 7 | G124: 2 | H124: 6
A125: 124 | B125: 7 | C125: 8 | D125: 15 | E125: ='Road only'!E125 -> 13 | F125: 2 | G125: 13
A126: 125 | B126: 2 | C126: 13 | D126: 15 | E126: ='Road only'!E126 -> 12 | F126: 3 | G126: 6 | H126: 6
A127: 126 | B127: 3 | C127: 12 | D127: 15 | E127: ='Road only'!E127 -> 10 | F127: 5 | G127: 10
A128: 127 | B128: 5 | C128: 10 | D128: 15 | E128: ='Road only'!E128 -> 14 | F128: 1 | G128: 8 | H128: 6
A129: 128 | B129: 1 | C129: 14 | D129: 15 | E129: ='Road only'!E129 -> 6 | F129: 9 | G129: 6
A130: 129 | B130: 9 | C130: 6 | D130: 15 | E130: ='Road only'!E130 -> 13 | F130: 2 | G130: 7 | H130: 6
A131: 130 | B131: 2 | C131: 13 | D131: =B131+C131 -> 15 | E131: ='Road only'!E131 -> 9 | F131: =D131-E131 -> 6 | G131: =D131-F131-H131 -> 9
A132: 131 | B132: 6 | C132: =H131+G131 -> 9 | D132: 15 | E132: ='Road only'!E132 -> 9 | F132: 6 | G132: 3 | H132: 6
A133: 132 | B133: 6 | C133: 9 | D133: 15 | E133: ='Road only'!E133 -> 8 | F133: 7 | G133: 8
A134: 133 | B134: 7 | C134: 8 | D134: 15 | E134: ='Road only'!E134 -> 12 | F134: 3 | G134: 6 | H134: 6
A135: 134 | B135: 3 | C135: 12 | D135: 15 | E135: ='Road only'!E135 -> 11 | F135: 4 | G135: 11
A136: 135 | B136: 4 | C136: 11 | D136: 15 | E136: ='Road only'!E136 -> 16 | F136: -1 | G136: 10 | H136: 6
A137: 136 | B137: -1 | C137: 16 | D137: 15 | E137: ='Road only'!E137 -> 11 | F137: 4 | G137: 11
A138: 137 | B138: 4 | C138: 11 | D138: 15 | E138: ='Road only'!E138 -> 14 | F138: 1 | G138: 8 | H138: 6
A139: 138 | B139: 1 | C139: 14 | D139: 15 | E139: ='Road only'!E139 -> 8 | F139: 7 | G139: 8
A140: 139 | B140: 7 | C140: 8 | D140: 15 | E140: ='Road only'!E140 -> 9 | F140: 6 | G140: 3 | H140: 6
A141: 140 | B141: 6 | C141: 9 | D141: 15 | E141: ='Road only'!E141 -> 10 | F141: 5 | G141: 10
A142: 141 | B142: 5 | C142: 10 | D142: 15 | E142: ='Road only'!E142 -> 13 | F142: 2 | G142: 7 | H142: 6
A143: 142 | B143: 2 | C143: 13 | D143: 15 | E143: ='Road only'!E143 -> 5 | F143: 10 | G143: 5
A144: 143 | B144: 10 | C144: 5 | D144: 15 | E144: ='Road only'!E144 -> 13 | F144: 2 | G144: 7 | H144: 6
A145: 144 | B145: 2 | C145: 13 | D145: 15 | E145: ='Road only'!E145 -> 12 | F145: 3 | G145: 12
A146: 145 | B146: 3 | C146: 12 | D146: 15 | E146: ='Road only'!E146 -> 12 | F146: 3 | G146: 6 | H146: 6
A147: 146 | B147: 3 | C147: 12 | D147: 15 | E147: ='Road only'!E147 -> 8 | F147: 7 | G147: 8
A148: 147 | B148: 7 | C148: 8 | D148: 15 | E148: ='Road only'!E148 -> 8 | F148: 7 | G148: 2 | H148: 6
A149: 148 | B149: 7 | C149: 8 | D149: 15 | E149: ='Road only'!E149 -> 15 | F149: 0 | G149: 15
A150: 149 | B150: 0 | C150: 15 | D150: 15 | E150: ='Road only'!E150 -> 11 | F150: 4 | G150: 5 | H150: 6
A151: 150 | B151: 4 | C151: 11 | D151: 15 | E151: ='Road only'!E151 -> 11 | F151: 4 | G151: 11
A152: 151 | B152: 4 | C152: 11 | D152: 15 | E152: ='Road only'!E152 -> 15 | F152: 0 | G152: 9 | H152: 6
A153: 152 | B153: 0 | C153: 15 | D153: 15 | E153: ='Road only'!E153 -> 8 | F153: 7 | G153: 8
A154: 153 | B154: 7 | C154: 8 | D154: 15 | E154: ='Road only'!E154 -> 12 | F154: 3 | G154: 6 | H154: 6
A155: 154 | B155: 3 | C155: 12 | D155: 15 | E155: ='Road only'!E155 -> 13 | F155: 2 | G155: 13
A156: 155 | B156: 2 | C156: 13 | D156: 15 | E156: ='Road only'!E156 -> 9 | F156: 6 | G156: 3 | H156: 6
A157: 156 | B157: 6 | C157: 9 | D157: 15 | E157: ='Road only'!E157 -> 13 | F157: 2 | G157: 13
A158: 157 | B158: 2 | C158: 13 | D158: 15 | E158: ='Road only'!E158 -> 11 | F158: 4 | G158: 5 | H158: 6
A159: 158 | B159: 4 | C159: 11 | D159: 15 | E159: ='Road only'!E159 -> 8 | F159: 7 | G159: 8
A160: 159 | B160: 7 | C160: 8 | D160: 15 | E160: ='Road only'!E160 -> 7 | F160: 8 | G160: 1 | H160: 6
A161: 160 | B161: 8 | C161: 7 | D161: 15 | E161: ='Road only'!E161 -> 14 | F161: 1 | G161: 14
A162: 161 | B162: 1 | C162: 14 | D162: 15 | E162: ='Road only'!E162 -> 11 | F162: 4 | G162: 5 | H162: 6
A163: 162 | B163: 4 | C163: 11 | D163: 15 | E163: ='Road only'!E163 -> 12 | F163: 3 | G163: 12
A164: 163 | B164: 3 | C164: 12 | D164: 15 | E164: ='Road only'!E164 -> 12 | F164: 3 | G164: 6 | H164: 6
A165: 164 | B165: 3 | C165: 12 | D165: 15 | E165: ='Road only'!E165 -> 15 | F165: 0 | G165: 15
A166: 165 | B166: =F165 -> 0 | C166: 15 | D166: 15 | E166: ='Road only'!E166 -> 9 | F166: 6 | G166: 3 | H166: 6
A167: 166 | B167: 6 | C167: 9 | D167: 15 | E167: ='Road only'!E167 -> 13 | F167: 2 | G167: 13
A168: 167 | B168: 2 | C168: 13 | D168: 15 | E168: ='Road only'!E168 -> 8 | F168: 7 | G168: 2 | H168: 6
A169: 168 | B169: 7 | C169: 8 | D169: 15 | E169: ='Road only'!E169 -> 13 | F169: 2 | G169: 13
A170: 169 | B170: 2 | C170: 13 | D170: 15 | E170: ='Road only'!E170 -> 11 | F170: 4 | G170: 5 | H170: 6
A171: 170 | B171: 4 | C171: 11 | D171: 15 | E171: ='Road only'!E171 -> 16 | F171: -1 | G171: 16
A172: 171 | B172: -1 | C172: 16 | D172: 15 | E172: ='Road only'!E172 -> 12 | F172: 3 | G172: 6 | H172: 6
A173: 172 | B173: 3 | C173: 12 | D173: 15 | E173: ='Road only'!E173 -> 11 | F173: 4 | G173: 11
A174: 173 | B174: 4 | C174: 11 | D174: 15 | E174: ='Road only'!E174 -> 9 | F174: 6 | G174: 3 | H174: 6
A175: 174 | B175: 6 | C175: 9 | D175: 15 | E175: ='Road only'!E175 -> 7 | F175: 8 | G175: 7
A176: 175 | B176: 8 | C176: 7 | D176: 15 | E176: ='Road only'!E176 -> 12 | F176: 3 | G176: 6 | H176: 6
A177: 176 | B177: 3 | C177: 12 | D177: 15 | E177: ='Road only'!E177 -> 12 | F177: 3 | G177: 12
A178: 177 | B178: 3 | C178: 12 | D178: 15 | E178: ='Road only'!E178 -> 11 | F178: 4 | G178: 5 | H178: 6
A179: 178 | B179: 4 | C179: 11 | D179: 15 | E179: ='Road only'!E179 -> 18 | F179: -3 | G179: 18
A180: 179 | B180: -3 | C180: 18 | D180: 15 | E180: ='Road only'!E180 -> 15 | F180: 0 | G180: 9 | H180: 6
A181: 180 | B181: 0 | C181: 15 | D181: 15 | E181: ='Road only'!E181 -> 11 | F181: 4 | G181: 11
A182: 181 | B182: 4 | C182: 11 | D182: 15 | E182: ='Road only'!E182 -> 11 | F182: 4 | G182: 5 | H182: 6
A183: 182 | B183: 4 | C183: 11 | D183: 15 | E183: ='Road only'!E183 -> 12 | F183: 3 | G183: 12
A184: 183 | B184: 3 | C184: 12 | D184: 15 | E184: ='Road only'!E184 -> 9 | F184: 6 | G184: 3 | H184: 6
A185: 184 | B185: 6 | C185: 9 | D185: 15 | E185: ='Road only'!E185 -> 13 | F185: 2 | G185: 13
A186: 185 | B186: 2 | C186: 13 | D186: 15 | E186: ='Road only'!E186 -> 11 | F186: 4 | G186: 5 | H186: 6
A187: 186 | B187: 4 | C187: 11 | D187: 15 | E187: ='Road only'!E187 -> 11 | F187: 4 | G187: 11
A188: 187 | B188: 4 | C188: 11 | D188: 15 | E188: ='Road only'!E188 -> 14 | F188: 1 | G188: 8 | H188: 6
A189: 188 | B189: 1 | C189: 14 | D189: 15 | E189: ='Road only'!E189 -> 7 | F189: 8 | G189: 7
A190: 189 | B190: 8 | C190: 7 | D190: 15 | E190: ='Road only'!E190 -> 9 | F190: 6 | G190: 3 | H190: 6
A191: 190 | B191: 6 | C191: 9 | D191: 15 | E191: ='Road only'!E191 -> 9 | F191: 6 | G191: 9
A192: 191 | B192: 6 | C192: 9 | D192: 15 | E192: ='Road only'!E192 -> 12 | F192: 3 | G192: 6 | H192: 6
A193: 192 | B193: 3 | C193: 12 | D193: 15 | E193: ='Road only'!E193 -> 13 | F193: 2 | G193: 13
A194: 193 | B194: 2 | C194: 13 | D194: 15 | E194: ='Road only'!E194 -> 13 | F194: 2 | G194: 7 | H194: 6
A195: 194 | B195: 2 | C195: 13 | D195: =B195+C195 -> 15 | E195: ='Road only'!E195 -> 8 | F195: =D195-E195 -> 7 | G195: =D195-F195-H195 -> 8
A196: 195 | B196: 7 | C196: =H195+G195 -> 8 | D196: 15 | E196: ='Road only'!E196 -> 13 | F196: 2 | G196: 7 | H196: 6
A197: 196 | B197: 2 | C197: 13 | D197: 15 | E197: ='Road only'!E197 -> 10 | F197: 5 | G197: 10
A198: 197 | B198: 5 | C198: 10 | D198: 15 | E198: ='Road only'!E198 -> 11 | F198: 4 | G198: 5 | H198: 6
A199: 198 | B199: 4 | C199: 11 | D199: 15 | E199: ='Road only'!E199 -> 12 | F199: 3 | G199: 12
A200: 199 | B200: 3 | C200: 12 | D200: 15 | E200: ='Road only'!E200 -> 8 | F200: 7 | G200: 2 | H200: 6
... 1801 more rows

Sheet Synchromodal optimal
A1: Period | B1: Start Inv | C1: Arrival | D1: Inv before demand | E1: Demand | F1: Inv after demand | G1: Order (Road) | H1: Order (RAIL)
A2: 1 | B2: 15 | D2: 15 | E2: 11 | F2: 4 | G2: 0 | H2: 11 | J2: Costs
A3: 2 | B3: 4 | C3: 11 | D3: 15 | E3: 7 | F3: 8 | G3: 7 | H3: 0 | J3: Unit inventory holding cost | M3: ='Road only'!M3 -> 136
A4: 3 | B4: 8 | C4: 7 | D4: 15 | E4: 12 | F4: 3 | G4: 1 | H4: 11 | J4: Unit inventory back order cost | M4: ='Road only'!M4 -> 2584
A5: 4 | B5: 3 | C5: 12 | D5: 15 | E5: 17 | F5: -2 | G5: 17 | H5: 0
A6: 5 | B6: -2 | C6: 17 | D6: 15 | E6: 7 | F6: 8 | G6: 0 | H6: 11 | J6: Unit transport cost Road | M6: ='Road only'!M6 -> 400
A7: 6 | B7: 8 | C7: 11 | D7: 19 | E7: 8 | F7: 11 | G7: 4 | H7: 0 | J7: Unit transport cost Rail | M7: ='Road only'!M7 -> 350
A8: 7 | B8: 11 | C8: 4 | D8: 15 | E8: 9 | F8: 6 | G8: 0 | H8: 11
A9: 8 | B9: 6 | C9: 11 | D9: 17 | E9: 8 | F9: 9 | G9: 6 | H9: 0 | J9: Avg Tsp Cost per period | M9: =SUM(G2:G2001)/2000*M6+SUM(H2:H2001)/2000*M7 -> 3964
A10: 9 | B10: 9 | C10: 6 | D10: 15 | E10: 15 | F10: 0 | G10: 4 | H10: 11 | J10: Avg Inv holding cst per period | M10: =SUMIF(F2:F2002,">0")/2000*M3 -> 701.692
A11: 10 | B11: 0 | C11: 15 | D11: 15 | E11: 16 | F11: -1 | G11: 16 | H11: 0 | J11: Avg Inv backorder cst per period | M11: =SUMIF(F2:F2001,"<0")/2000*M4*(-1) -> 157.624
A12: 11 | B12: -1 | C12: 16 | D12: 15 | E12: 10 | F12: 5 | G12: 0 | H12: 11
A13: 12 | B13: 5 | C13: 11 | D13: 16 | E13: 13 | F13: 3 | G13: 12 | H13: 0
A14: 13 | B14: 3 | C14: 12 | D14: 15 | E14: 10 | F14: 5 | G14: 0 | H14: 11 | J14: Avg ttl cost per period | M14: =SUM(M9:M12) -> 4823.316
A15: 14 | B15: 5 | C15: 11 | D15: 16 | E15: 8 | F15: 8 | G15: 7 | H15: 0
A16: 15 | B16: 8 | C16: 7 | D16: 15 | E16: 18 | F16: -3 | G16: 7 | H16: 11
A17: 16 | B17: -3 | C17: 18 | D17: 15 | E17: 12 | F17: 3 | G17: 12 | H17: 0 | J17: Emissions
A18: 17 | B18: 3 | C18: 12 | D18: 15 | E18: 15 | F18: 0 | G18: 4 | H18: 11 | J18: Unit emission Road | M18: ='Road only'!M18 -> 0.72
A19: 18 | B19: 0 | C19: 15 | D19: 15 | E19: 9 | F19: 6 | G19: 9 | H19: 0 | J19: Unit emission Rail | M19: ='Road only'!M19 -> 0.2
A20: 19 | B20: 6 | C20: 9 | D20: 15 | E20: 9 | F20: 6 | G20: 0 | H20: 11
A21: 20 | B21: 6 | C21: 11 | D21: 17 | E21: 11 | F21: 6 | G21: 9 | H21: 0 | J21: Avg emission per period (Road&Rail) | M21: =SUM(H2:H2001)*M19/2000+SUM(G2:G2001)*M18/2000 -> 4.7702
A22: 21 | B22: 6 | C22: 9 | D22: 15 | E22: 15 | F22: 0 | G22: 4 | H22: 11
A23: 22 | B23: 0 | C23: 15 | D23: 15 | E23: 12 | F23: 3 | G23: 12 | H23: 0
A24: 23 | B24: 3 | C24: 12 | D24: 15 | E24: 9 | F24: 6 | G24: 0 | H24: 11 | J24: Service level
A25: 24 | B25: 6 | C25: 11 | D25: 17 | E25: 6 | F25: 11 | G25: 4 | H25: 0 | J25: In-stock Probability at the DC | M25: =1-COUNTIF(F2:F2001,"<0")/2000 -> 0.9565
A26: 25 | B26: 11 | C26: 4 | D26: 15 | E26: 12 | F26: 3 | G26: 1 | H26: 11
A27: 26 | B27: 3 | C27: 12 | D27: 15 | E27: 9 | F27: 6 | G27: 9 | H27: 0
A28: 27 | B28: 6 | C28: 9 | D28: 15 | E28: 15 | F28: 0 | G28: 4 | H28: 11
A29: 28 | B29: 0 | C29: 15 | D29: 15 | E29: 9 | F29: 6 | G29: 9 | H29: 0 | J29: VOL IN RAIL (%) | K29: Inventory | L29: Transport | M29: Total
A30: 29 | B30: 6 | C30: 9 | D30: 15 | E30: 11 | F30: 4 | G30: 0 | H30: 11 | J30: 0 | K30: 809.3953989 | L30: 4239.71986 | M30: 5049.12056
A31: 30 | B31: 4 | C31: 11 | D31: 15 | E31: 6 | F31: 9 | G31: 6 | H31: 0 | J31: 0.04761904762 | K31: 809.3953989 | L31: 4214.707354 | M31: 5024.108054
A32: 31 | B32: 9 | C32: 6 | D32: 15 | E32: 10 | F32: 5 | G32: 0 | H32: 11 | J32: 0.09523809524 | K32: 809.3953989 | L32: 4189.694847 | M32: 4999.095548
A33: 32 | B33: 5 | C33: 11 | D33: 16 | E33: 13 | F33: 3 | G33: 12 | H33: 0 | J33: 0.1428571429 | K33: 809.3953989 | L33: 4164.682341 | M33: 4974.083042
A34: 33 | B34: 3 | C34: 12 | D34: 15 | E34: 7 | F34: 8 | G34: 0 | H34: 11 | J34: 0.1904761905 | K34: 809.463433 | L34: 4139.669835 | M34: 4949.138569
A35: 34 | B35: 8 | C35: 11 | D35: 19 | E35: 8 | F35: 11 | G35: 4 | H35: 0 | J35: 0.2380952381 | K35: 810.4159092 | L35: 4114.657329 | M35: 4925.078539
A36: 35 | B36: 11 | C36: 4 | D36: 15 | E36: 12 | F36: 3 | G36: 1 | H36: 11 | J36: 0.2857142857 | K36: 813.0692359 | L36: 4089.644822 | M36: 4902.71936
A37: 36 | B37: 3 | C37: 12 | D37: 15 | E37: 13 | F37: 2 | G37: 13 | H37: 0 | J37: 0.3333333333 | K37: 815.5864945 | L37: 4064.632316 | M37: 4880.224112
A38: 37 | B38: 2 | C38: 13 | D38: 15 | E38: 10 | F38: 5 | G38: 0 | H38: 11 | J38: 0.380952381 | K38: 820.8251138 | L38: 4039.61981 | M38: 4860.450225
A39: 38 | B39: 5 | C39: 11 | D39: 16 | E39: 4 | F39: 12 | G39: 3 | H39: 0 | J39: 0.4285714286 | K39: 830.8941483 | L39: 4014.807404 | M39: 4845.706853
A40: 39 | B40: 12 | C40: 3 | D40: 15 | E40: 12 | F40: 3 | G40: 1 | H40: 11 | J40: 0.4761904762 | K40: 843.2763394 | L40: 3989.994997 | M40: 4833.276638
A41: 40 | B41: 3 | C41: 12 | D41: 15 | E41: 18 | F41: -3 | G41: 18 | H41: 0 | J41: 0.5238095238 | K41: 858.9921973 | L41: 3965.182591 | M41: 4824.18009
A42: 41 | B42: -3 | C42: 18 | D42: 15 | E42: 11 | F42: 4 | G42: 0 | H42: 11 | J42: 0.5714285714 | K42: 884.0967496 | L42: 3940.370185 | M42: 4824.472236
A43: 42 | B43: 4 | C43: 11 | D43: 15 | E43: 7 | F43: 8 | G43: 7 | H43: 0 | J43: 0.619047619 | K43: 918.1137581 | L43: 3915.557779 | M43: 4833.676838
A44: 43 | B44: 8 | C44: 7 | D44: 15 | E44: 8 | F44: 7 | G44: 0 | H44: 11 | J44: 0.6666666667 | K44: 965.8056041 | L44: 3890.745373 | M44: 4856.556278
A45: 44 | B45: 7 | C45: 11 | D45: 18 | E45: 8 | F45: 10 | G45: 5 | H45: 0 | J45: 0.7142857143 | K45: 1025.539471 | L45: 3865.932966 | M45: 4891.477739
A46: 45 | B46: 10 | C46: 5 | D46: 15 | E46: 13 | F46: 2 | G46: 2 | H46: 11 | J46: 0.7619047619 | K46: 1098.676039 | L46: 3841.12056 | M46: 4939.801901
A47: 46 | B47: 2 | C47: 13 | D47: 15 | E47: 11 | F47: 4 | G47: 11 | H47: 0 | J47: 0.8095238095 | K47: 1190.521962 | L47: 3816.308154 | M47: 5006.835418
A48: 47 | B48: 4 | C48: 11 | D48: 15 | E48: 12 | F48: 3 | G48: 1 | H48: 11 | J48: 0.8571428571 | K48: 1331.488445 | L48: 3791.495748 | M48: 5122.989495
A49: 48 | B49: 3 | C49: 12 | D49: 15 | E49: 14 | F49: 1 | G49: 14 | H49: 0 | J49: 0.9047619048 | K49: 1545.319361 | L49: 3766.683342 | M49: 5312.008004
A50: 49 | B50: 1 | C50: 14 | D50: 15 | E50: 10 | F50: 5 | G50: 0 | H50: 11 | J50: 0.9523809524 | K50: 2054.690046 | L50: 3742.271136 | M50: 5796.966483
A51: 50 | B51: 5 | C51: 11 | D51: 16 | E51: 10 | F51: 6 | G51: 9 | H51: 0 | J51: 1 | K51: 5468.364884 | L51: 3722.061031 | M51: 9190.431216
A52: 51 | B52: 6 | C52: 9 | D52: 15 | E52: 9 | F52: 6 | G52: 0 | H52: 11
A53: 52 | B53: 6 | C53: 11 | D53: 17 | E53: 13 | F53: 4 | G53: 11 | H53: 0
A54: 53 | B54: 4 | C54: 11 | D54: 15 | E54: 9 | F54: 6 | G54: 0 | H54: 11
A55: 54 | B55: 6 | C55: 11 | D55: 17 | E55: 6 | F55: 11 | G55: 4 | H55: 0
A56: 55 | B56: 11 | C56: 4 | D56: 15 | E56: 11 | F56: 4 | G56: 0 | H56: 11
A57: 56 | B57: 4 | C57: 11 | D57: 15 | E57: 8 | F57: 7 | G57: 8 | H57: 0
A58: 57 | B58: 7 | C58: 8 | D58: 15 | E58: 10 | F58: 5 | G58: 0 | H58: 11
A59: 58 | B59: 5 | C59: 11 | D59: 16 | E59: 7 | F59: 9 | G59: 6 | H59: 0
A60: 59 | B60: 9 | C60: 6 | D60: 15 | E60: 14 | F60: 1 | G60: 3 | H60: 11
A61: 60 | B61: 1 | C61: 14 | D61: 15 | E61: 8 | F61: 7 | G61: 8 | H61: 0
A62: 61 | B62: 7 | C62: 8 | D62: 15 | E62: 10 | F62: 5 | G62: 0 | H62: 11
A63: 62 | B63: 5 | C63: 11 | D63: 16 | E63: 9 | F63: 7 | G63: 8 | H63: 0
A64: 63 | B64: 7 | C64: 8 | D64: 15 | E64: 9 | F64: 6 | G64: 0 | H64: 11
A65: 64 | B65: 6 | C65: 11 | D65: 17 | E65: 11 | F65: 6 | G65: 9 | H65: 0
A66: 65 | B66: 6 | C66: 9 | D66: 15 | E66: 10 | F66: 5 | G66: 0 | H66: 11
A67: 66 | B67: 5 | C67: 11 | D67: 16 | E67: 12 | F67: 4 | G67: 11 | H67: 0
A68: 67 | B68: 4 | C68: 11 | D68: 15 | E68: 14 | F68: 1 | G68: 3 | H68: 11
A69: 68 | B69: 1 | C69: 14 | D69: 15 | E69: 9 | F69: 6 | G69: 9 | H69: 0
A70: 69 | B70: 6 | C70: 9 | D70: 15 | E70: 10 | F70: 5 | G70: 0 | H70: 11
A71: 70 | B71: 5 | C71: 11 | D71: 16 | E71: 14 | F71: 2 | G71: 13 | H71: 0
A72: 71 | B72: 2 | C72: 13 | D72: 15 | E72: 8 | F72: 7 | G72: 0 | H72: 11
A73: 72 | B73: 7 | C73: 11 | D73: 18 | E73: 14 | F73: 4 | G73: 11 | H73: 0
A74: 73 | B74: 4 | C74: 11 | D74: 15 | E74: 13 | F74: 2 | G74: 2 | H74: 11
A75: 74 | B75: 2 | C75: 13 | D75: 15 | E75: 14 | F75: 1 | G75: 14 | H75: 0
A76: 75 | B76: 1 | C76: 14 | D76: 15 | E76: 13 | F76: 2 | G76: 2 | H76: 11
A77: 76 | B77: 2 | C77: 13 | D77: 15 | E77: 11 | F77: 4 | G77: 11 | H77: 0
A78: 77 | B78: 4 | C78: 11 | D78: 15 | E78: 9 | F78: 6 | G78: 0 | H78: 11
A79: 78 | B79: 6 | C79: 11 | D79: 17 | E79: 13 | F79: 4 | G79: 11 | H79: 0
A80: 79 | B80: 4 | C80: 11 | D80: 15 | E80: 12 | F80: 3 | G80: 1 | H80: 11
A81: 80 | B81: 3 | C81: 12 | D81: 15 | E81: 10 | F81: 5 | G81: 10 | H81: 0
A82: 81 | B82: 5 | C82: 10 | D82: 15 | E82: 17 | F82: -2 | G82: 6 | H82: 11
A83: 82 | B83: -2 | C83: 17 | D83: 15 | E83: 10 | F83: 5 | G83: 10 | H83: 0
A84: 83 | B84: 5 | C84: 10 | D84: 15 | E84: 6 | F84: 9 | G84: 0 | H84: 11
A85: 84 | B85: 9 | C85: 11 | D85: 20 | E85: 5 | F85: 15 | G85: 0 | H85: 0
A86: 85 | B86: 15 | C86: 0 | D86: 15 | E86: 8 | F86: 7 | G86: 0 | H86: 11
A87: 86 | B87: 7 | C87: 11 | D87: 18 | E87: 10 | F87: 8 | G87: 7 | H87: 0
A88: 87 | B88: 8 | C88: 7 | D88: 15 | E88: 5 | F88: 10 | G88: 0 | H88: 11
A89: 88 | B89: 10 | C89: 11 | D89: 21 | E89: 13 | F89: 8 | G89: 7 | H89: 0
A90: 89 | B90: 8 | C90: 7 | D90: 15 | E90: 12 | F90: 3 | G90: 1 | H90: 11
A91: 90 | B91: 3 | C91: 12 | D91: 15 | E91: 11 | F91: 4 | G91: 11 | H91: 0
A92: 91 | B92: 4 | C92: 11 | D92: 15 | E92: 11 | F92: 4 | G92: 0 | H92: 11
A93: 92 | B93: 4 | C93: 11 | D93: 15 | E93: 13 | F93: 2 | G93: 13 | H93: 0
A94: 93 | B94: 2 | C94: 13 | D94: 15 | E94: 14 | F94: 1 | G94: 3 | H94: 11
A95: 94 | B95: 1 | C95: 14 | D95: 15 | E95: 12 | F95: 3 | G95: 12 | H95: 0
A96: 95 | B96: 3 | C96: 12 | D96: 15 | E96: 12 | F96: 3 | G96: 1 | H96: 11
A97: 96 | B97: 3 | C97: 12 | D97: 15 | E97: 9 | F97: 6 | G97: 9 | H97: 0
A98: 97 | B98: 6 | C98: 9 | D98: 15 | E98: 10 | F98: 5 | G98: 0 | H98: 11
A99: 98 | B99: 5 | C99: 11 | D99: 16 | E99: 9 | F99: 7 | G99: 8 | H99: 0
A100: 99 | B100: 7 | C100: 8 | D100: 15 | E100: 6 | F100: 9 | G100: 0 | H100: 11
A101: 100 | B101: 9 | C101: 11 | D101: 20 | E101: 9 | F101: 11 | G101: 4 | H101: 0
A102: 101 | B102: 11 | C102: 4 | D102: 15 | E102: 9 | F102: 6 | G102: 0 | H102: 11
A103: 102 | B103: 6 | C103: 11 | D103: 17 | E103: 9 | F103: 8 | G103: 7 | H103: 0
A104: 103 | B104: 8 | C104: 7 | D104: 15 | E104: 7 | F104: 8 | G104: 0 | H104: 11
A105: 104 | B105: 8 | C105: 11 | D105: 19 | E105: 14 | F105: 5 | G105: 10 | H105: 0
A106: 105 | B106: 5 | C106: 10 | D106: 15 | E106: 15 | F106: 0 | G106: 4 | H106: 11
A107: 106 | B107: 0 | C107: 15 | D107: 15 | E107: 9 | F107: 6 | G107: 9 | H107: 0
A108: 107 | B108: 6 | C108: 9 | D108: 15 | E108: 9 | F108: 6 | G108: 0 | H108: 11
A109: 108 | B109: 6 | C109: 11 | D109: 17 | E109: 13 | F109: 4 | G109: 11 | H109: 0
A110: 109 | B110: 4 | C110: 11 | D110: 15 | E110: 14 | F110: 1 | G110: 3 | H110: 11
A111: 110 | B111: 1 | C111: 14 | D111: 15 | E111: 8 | F111: 7 | G111: 8 | H111: 0
A112: 111 | B112: 7 | C112: 8 | D112: 15 | E112: 8 | F112: 7 | G112: 0 | H112: 11
A113: 112 | B113: 7 | C113: 11 | D113: 18 | E113: 11 | F113: 7 | G113: 8 | H113: 0
A114: 113 | B114: 7 | C114: 8 | D114: 15 | E114: 10 | F114: 5 | G114: 0 | H114: 11
A115: 114 | B115: 5 | C115: 11 | D115: 16 | E115: 9 | F115: 7 | G115: 8 | H115: 0
A116: 115 | B116: 7 | C116: 8 | D116: 15 | E116: 5 | F116: 10 | G116: 0 | H116: 11
A117: 116 | B117: 10 | C117: 11 | D117: 21 | E117: 13 | F117: 8 | G117: 7 | H117: 0
A118: 117 | B118: 8 | C118: 7 | D118: 15 | E118: 8 | F118: 7 | G118: 0 | H118: 11
A119: 118 | B119: 7 | C119: 11 | D119: 18 | E119: 11 | F119: 7 | G119: 8 | H119: 0
A120: 119 | B120: 7 | C120: 8 | D120: 15 | E120: 9 | F120: 6 | G120: 0 | H120: 11
A121: 120 | B121: 6 | C121: 11 | D121: 17 | E121: 8 | F121: 9 | G121: 6 | H121: 0
A122: 121 | B122: 9 | C122: 6 | D122: 15 | E122: 10 | F122: 5 | G122: 0 | H122: 11
A123: 122 | B123: 5 | C123: 11 | D123: 16 | E123: 8 | F123: 8 | G123: 7 | H123: 0
A124: 123 | B124: 8 | C124: 7 | D124: 15 | E124: 9 | F124: 6 | G124: 0 | H124: 11
A125: 124 | B125: 6 | C125: 11 | D125: 17 | E125: 14 | F125: 3 | G125: 12 | H125: 0
A126: 125 | B126: 3 | C126: 12 | D126: 15 | E126: 17 | F126: -2 | G126: 6 | H126: 11
A127: 126 | B127: -2 | C127: 17 | D127: 15 | E127: 8 | F127: 7 | G127: 8 | H127: 0
A128: 127 | B128: 7 | C128: 8 | D128: 15 | E128: 6 | F128: 9 | G128: 0 | H128: 11
A129: 128 | B129: 9 | C129: 11 | D129: 20 | E129: 15 | F129: 5 | G129: 10 | H129: 0
A130: 129 | B130: 5 | C130: 10 | D130: 15 | E130: 13 | F130: 2 | G130: 2 | H130: 11
A131: 130 | B131: 2 | C131: 13 | D131: 15 | E131: 16 | F131: -1 | G131: 16 | H131: 0
A132: 131 | B132: -1 | C132: 16 | D132: 15 | E132: 13 | F132: 2 | G132: 2 | H132: 11
A133: 132 | B133: 2 | C133: 13 | D133: 15 | E133: 10 | F133: 5 | G133: 10 | H133: 0
A134: 133 | B134: 5 | C134: 10 | D134: 15 | E134: 5 | F134: 10 | G134: 0 | H134: 11
A135: 134 | B135: 10 | C135: 11 | D135: 21 | E135: 9 | F135: 12 | G135: 3 | H135: 0
A136: 135 | B136: 12 | C136: 3 | D136: 15 | E136: 10 | F136: 5 | G136: 0 | H136: 11
A137: 136 | B137: 5 | C137: 11 | D137: 16 | E137: 9 | F137: 7 | G137: 8 | H137: 0
A138: 137 | B138: 7 | C138: 8 | D138: 15 | E138: 15 | F138: 0 | G138: 4 | H138: 11
A139: 138 | B139: 0 | C139: 15 | D139: 15 | E139: 8 | F139: 7 | G139: 8 | H139: 0
A140: 139 | B140: 7 | C140: 8 | D140: 15 | E140: 11 | F140: 4 | G140: 0 | H140: 11
A141: 140 | B141: 4 | C141: 11 | D141: 15 | E141: 16 | F141: -1 | G141: 16 | H141: 0
A142: 141 | B142: -1 | C142: 16 | D142: 15 | E142: 12 | F142: 3 | G142: 1 | H142: 11
A143: 142 | B143: 3 | C143: 12 | D143: 15 | E143: 8 | F143: 7 | G143: 8 | H143: 0
A144: 143 | B144: 7 | C144: 8 | D144: 15 | E144: 14 | F144: 1 | G144: 3 | H144: 11
A145: 144 | B145: 1 | C145: 14 | D145: 15 | E145: 8 | F145: 7 | G145: 8 | H145: 0
A146: 145 | B146: 7 | C146: 8 | D146: 15 | E146: 9 | F146: 6 | G146: 0 | H146: 11
A147: 146 | B147: 6 | C147: 11 | D147: 17 | E147: 8 | F147: 9 | G147: 6 | H147: 0
A148: 147 | B148: 9 | C148: 6 | D148: 15 | E148: 12 | F148: 3 | G148: 1 | H148: 11
A149: 148 | B149: 3 | C149: 12 | D149: 15 | E149: 10 | F149: 5 | G149: 10 | H149: 0
A150: 149 | B150: 5 | C150: 10 | D150: 15 | E150: 11 | F150: 4 | G150: 0 | H150: 11
A151: 150 | B151: 4 | C151: 11 | D151: 15 | E151: 13 | F151: 2 | G151: 13 | H151: 0
A152: 151 | B152: 2 | C152: 13 | D152: 15 | E152: 13 | F152: 2 | G152: 2 | H152: 11
A153: 152 | B153: 2 | C153: 13 | D153: 15 | E153: 11 | F153: 4 | G153: 11 | H153: 0
A154: 153 | B154: 4 | C154: 11 | D154: 15 | E154: 13 | F154: 2 | G154: 2 | H154: 11
A155: 154 | B155: 2 | C155: 13 | D155: 15 | E155: 12 | F155: 3 | G155: 12 | H155: 0
A156: 155 | B156: 3 | C156: 12 | D156: 15 | E156: 14 | F156: 1 | G156: 3 | H156: 11
A157: 156 | B157: 1 | C157: 14 | D157: 15 | E157: 6 | F157: 9 | G157: 6 | H157: 0
A158: 157 | B158: 9 | C158: 6 | D158: 15 | E158: 11 | F158: 4 | G158: 0 | H158: 11
A159: 158 | B159: 4 | C159: 11 | D159: 15 | E159: 6 | F159: 9 | G159: 6 | H159: 0
A160: 159 | B160: 9 | C160: 6 | D160: 15 | E160: 9 | F160: 6 | G160: 0 | H160: 11
A161: 160 | B161: 6 | C161: 11 | D161: 17 | E161: 11 | F161: 6 | G161: 9 | H161: 0
A162: 161 | B162: 6 | C162: 9 | D162: 15 | E162: 8 | F162: 7 | G162: 0 | H162: 11
A163: 162 | B163: 7 | C163: 11 | D163: 18 | E163: 10 | F163: 8 | G163: 7 | H163: 0
A164: 163 | B164: 8 | C164: 7 | D164: 15 | E164: 4 | F164: 11 | G164: 0 | H164: 11
A165: 164 | B165: 11 | C165: 11 | D165: 22 | E165: 11 | F165: 11 | G165: 4 | H165: 0
A166: 165 | B166: 11 | C166: 4 | D166: 15 | E166: 8 | F166: 7 | G166: 0 | H166: 11
A167: 166 | B167: 7 | C167: 11 | D167: 18 | E167: 10 | F167: 8 | G167: 7 | H167: 0
A168: 167 | B168: 8 | C168: 7 | D168: 15 | E168: 13 | F168: 2 | G168: 2 | H168: 11
A169: 168 | B169: 2 | C169: 13 | D169: 15 | E169: 7 | F169: 8 | G169: 7 | H169: 0
A170: 169 | B170: 8 | C170: 7 | D170: 15 | E170: 9 | F170: 6 | G170: 0 | H170: 11
A171: 170 | B171: 6 | C171: 11 | D171: 17 | E171: 13 | F171: 4 | G171: 11 | H171: 0
A172: 171 | B172: 4 | C172: 11 | D172: 15 | E172: 6 | F172: 9 | G172: 0 | H172: 11
A173: 172 | B173: 9 | C173: 11 | D173: 20 | E173: 14 | F173: 6 | G173: 9 | H173: 0
A174: 173 | B174: 6 | C174: 9 | D174: 15 | E174: 9 | F174: 6 | G174: 0 | H174: 11
A175: 174 | B175: 6 | C175: 11 | D175: 17 | E175: 11 | F175: 6 | G175: 9 | H175: 0
A176: 175 | B176: 6 | C176: 9 | D176: 15 | E176: 13 | F176: 2 | G176: 2 | H176: 11
A177: 176 | B177: 2 | C177: 13 | D177: 15 | E177: 10 | F177: 5 | G177: 10 | H177: 0
A178: 177 | B178: 5 | C178: 10 | D178: 15 | E178: 9 | F178: 6 | G178: 0 | H178: 11
A179: 178 | B179: 6 | C179: 11 | D179: 17 | E179: 12 | F179: 5 | G179: 10 | H179: 0
A180: 179 | B180: 5 | C180: 10 | D180: 15 | E180: 10 | F180: 5 | G180: 0 | H180: 11
A181: 180 | B181: 5 | C181: 11 | D181: 16 | E181: 9 | F181: 7 | G181: 8 | H181: 0
A182: 181 | B182: 7 | C182: 8 | D182: 15 | E182: 12 | F182: 3 | G182: 1 | H182: 11
A183: 182 | B183: 3 | C183: 12 | D183: 15 | E183: 11 | F183: 4 | G183: 11 | H183: 0
A184: 183 | B184: 4 | C184: 11 | D184: 15 | E184: 10 | F184: 5 | G184: 0 | H184: 11
A185: 184 | B185: 5 | C185: 11 | D185: 16 | E185: 15 | F185: 1 | G185: 14 | H185: 0
A186: 185 | B186: 1 | C186: 14 | D186: 15 | E186: 13 | F186: 2 | G186: 2 | H186: 11
A187: 186 | B187: 2 | C187: 13 | D187: 15 | E187: 11 | F187: 4 | G187: 11 | H187: 0
A188: 187 | B188: 4 | C188: 11 | D188: 15 | E188: 10 | F188: 5 | G188: 0 | H188: 11
A189: 188 | B189: 5 | C189: 11 | D189: 16 | E189: 7 | F189: 9 | G189: 6 | H189: 0
A190: 189 | B190: 9 | C190: 6 | D190: 15 | E190: 11 | F190: 4 | G190: 0 | H190: 11
A191: 190 | B191: 4 | C191: 11 | D191: 15 | E191: 10 | F191: 5 | G191: 10 | H191: 0
A192: 191 | B192: 5 | C192: 10 | D192: 15 | E192: 16 | F192: -1 | G192: 5 | H192: 11
A193: 192 | B193: -1 | C193: 16 | D193: 15 | E193: 13 | F193: 2 | G193: 13 | H193: 0
A194: 193 | B194: 2 | C194: 13 | D194: 15 | E194: 9 | F194: 6 | G194: 0 | H194: 11
A195: 194 | B195: 6 | C195: 11 | D195: 17 | E195: 13 | F195: 4 | G195: 11 | H195: 0
A196: 195 | B196: 4 | C196: 11 | D196: 15 | E196: 14 | F196: 1 | G196: 3 | H196: 11
A197: 196 | B197: 1 | C197: 14 | D197: 15 | E197: 10 | F197: 5 | G197: 10 | H197: 0
A198: 197 | B198: 5 | C198: 10 | D198: 15 | E198: 15 | F198: 0 | G198: 4 | H198: 11
A199: 198 | B199: 0 | C199: 15 | D199: 15 | E199: 9 | F199: 6 | G199: 9 | H199: 0
A200: 199 | B200: 6 | C200: 9 | D200: 15 | E200: 9 | F200: 6 | G200: 0 | H200: 11
... 1801 more rows

Sheet artwork

Sheet Demand
A1: Pattern | B1: Dice 1 | C1: Dice 2 | D1: Dice 3 | E1: Prob. | F1: Total
A2: 1 | B2: 1 | C2: 1 | D2: 1 | E2: =1/6/6/6 -> 0.00462962963 | F2: =SUM(B2:D2) -> 3
A3: 2 | B3: 1 | C3: 1 | D3: 2 | E3: =1/6/6/6 -> 0.00462962963 | F3: =SUM(B3:D3) -> 4
A4: 3 | B4: 1 | C4: 1 | D4: 3 | E4: 0.00462962963 | F4: 5 | L4: Bin | M4: Frequency | N4: Cumulative %
A5: 4 | B5: 1 | C5: 1 | D5: 4 | E5: 0.00462962963 | F5: 6 | L5: 3 | M5: 1 | N5: 0.00462962963
A6: 5 | B6: 1 | C6: 1 | D6: 5 | E6: 0.00462962963 | F6: 7 | I6: BIN | L6: 4 | M6: 3 | N6: 0.01851851852
A7: 6 | B7: 1 | C7: 1 | D7: 6 | E7: 0.00462962963 | F7: 8 | I7: 3 | L7: 5 | M7: 6 | N7: 0.0462962963
A8: 7 | B8: 1 | C8: 2 | D8: 1 | E8: 0.00462962963 | F8: 4 | I8: 4 | L8: 6 | M8: 10 | N8: 0.09259259259
A9: 8 | B9: 1 | C9: 2 | D9: 2 | E9: 0.00462962963 | F9: 5 | I9: 5 | L9: 7 | M9: 15 | N9: 0.162037037
A10: 9 | B10: 1 | C10: 2 | D10: 3 | E10: 0.00462962963 | F10: 6 | I10: 6 | L10: 8 | M10: 21 | N10: 0.2592592593
A11: 10 | B11: 1 | C11: 2 | D11: 4 | E11: 0.00462962963 | F11: 7 | I11: 7 | L11: 9 | M11: 25 | N11: 0.375
A12: 11 | B12: 1 | C12: 2 | D12: 5 | E12: 0.00462962963 | F12: 8 | I12: 8 | L12: 10 | M12: 27 | N12: 0.5
A13: 12 | B13: 1 | C13: 2 | D13: 6 | E13: 0.00462962963 | F13: 9 | I13: 9 | L13: 11 | M13: 27 | N13: 0.625
A14: 13 | B14: 1 | C14: 3 | D14: 1 | E14: 0.00462962963 | F14: 5 | I14: 10 | L14: 12 | M14: 25 | N14: 0.7407407407
A15: 14 | B15: 1 | C15: 3 | D15: 2 | E15: 0.00462962963 | F15: 6 | I15: 11 | L15: 13 | M15: 21 | N15: 0.837962963
A16: 15 | B16: 1 | C16: 3 | D16: 3 | E16: 0.00462962963 | F16: 7 | I16: 12 | L16: 14 | M16: 14 | N16: 0.9027777778
A17: 16 | B17: 1 | C17: 3 | D17: 4 | E17: 0.00462962963 | F17: 8 | I17: 13 | L17: 15 | M17: 11 | N17: 0.9537037037
A18: 17 | B18: 1 | C18: 3 | D18: 5 | E18: 0.00462962963 | F18: 9 | I18: 14 | L18: 16 | M18: 6 | N18: 0.9814814815
A19: 18 | B19: 1 | C19: 3 | D19: 6 | E19: 0.00462962963 | F19: 10 | I19: 15 | L19: 17 | M19: 3 | N19: 0.9953703704
A20: 19 | B20: 1 | C20: 4 | D20: 1 | E20: 0.00462962963 | F20: 6 | I20: 16 | L20: 18 | M20: 1 | N20: 1
A21: 20 | B21: 1 | C21: 4 | D21: 2 | E21: 0.00462962963 | F21: 7 | I21: 17 | L21: More | M21: 0 | N21: 1
A22: 21 | B22: 1 | C22: 4 | D22: 3 | E22: 0.00462962963 | F22: 8 | I22: 18
A23: 22 | B23: 1 | C23: 4 | D23: 4 | E23: 0.00462962963 | F23: 9
A24: 23 | B24: 1 | C24: 4 | D24: 5 | E24: 0.00462962963 | F24: 10
A25: 24 | B25: 1 | C25: 4 | D25: 6 | E25: 0.00462962963 | F25: 11 | M25: =SUM(M5:M20) -> 216
A26: 25 | B26: 1 | C26: 5 | D26: 1 | E26: 0.00462962963 | F26: 7
A27: 26 | B27: 1 | C27: 5 | D27: 2 | E27: 0.00462962963 | F27: 8
A28: 27 | B28: 1 | C28: 5 | D28: 3 | E28: 0.00462962963 | F28: 9
A29: 28 | B29: 1 | C29: 5 | D29: 4 | E29: 0.00462962963 | F29: 10
A30: 29 | B30: 1 | C30: 5 | D30: 5 | E30: 0.00462962963 | F30: 11 | I30: =AVERAGE(F2:F217) -> 10.50462963
A31: 30 | B31: 1 | C31: 5 | D31: 6 | E31: 0.00462962963 | F31: 12 | I31: =STDEV(F2:F217) -> 2.971175768
A32: 31 | B32: 1 | C32: 6 | D32: 1 | E32: 0.00462962963 | F32: 8
A33: 32 | B33: 1 | C33: 6 | D33: 2 | E33: 0.00462962963 | F33: 9
A34: 33 | B34: 1 | C34: 6 | D34: 3 | E34: 0.00462962963 | F34: 10
A35: 34 | B35: 1 | C35: 6 | D35: 4 | E35: 0.00462962963 | F35: 11
A36: 35 | B36: 1 | C36: 6 | D36: 5 | E36: 0.00462962963 | F36: 12
A37: 36 | B37: 1 | C37: 6 | D37: 6 | E37: 0.00462962963 | F37: 13
A38: 37 | B38: 2 | C38: 1 | D38: 1 | E38: 0.00462962963 | F38: 4
A39: 38 | B39: 2 | C39: 1 | D39: 2 | E39: 0.00462962963 | F39: 5 | L39: Bin | M39: Frequency
A40: 39 | B40: 2 | C40: 1 | D40: 3 | E40: 0.00462962963 | F40: 6 | L40: 3 | M40: =M5/$M$25 -> 0.00462962963
A41: 40 | B41: 2 | C41: 1 | D41: 4 | E41: 0.00462962963 | F41: 7 | L41: 4 | M41: =M6/$M$25 -> 0.01388888889
A42: 41 | B42: 2 | C42: 1 | D42: 5 | E42: 0.00462962963 | F42: 8 | L42: 5 | M42: 0.02777777778
A43: 42 | B43: 2 | C43: 1 | D43: 6 | E43: 0.00462962963 | F43: 9 | L43: 6 | M43: 0.0462962963
A44: 43 | B44: 2 | C44: 2 | D44: 1 | E44: 0.00462962963 | F44: 5 | L44: 7 | M44: 0.06944444444
A45: 44 | B45: 2 | C45: 2 | D45: 2 | E45: 0.00462962963 | F45: 6 | L45: 8 | M45: 0.09722222222
A46: 45 | B46: 2 | C46: 2 | D46: 3 | E46: 0.00462962963 | F46: 7 | L46: 9 | M46: 0.1157407407
A47: 46 | B47: 2 | C47: 2 | D47: 4 | E47: 0.00462962963 | F47: 8 | L47: 10 | M47: 0.125
A48: 47 | B48: 2 | C48: 2 | D48: 5 | E48: 0.00462962963 | F48: 9 | L48: 11 | M48: 0.125
A49: 48 | B49: 2 | C49: 2 | D49: 6 | E49: 0.00462962963 | F49: 10 | L49: 12 | M49: 0.1157407407
A50: 49 | B50: 2 | C50: 3 | D50: 1 | E50: 0.00462962963 | F50: 6 | L50: 13 | M50: 0.09722222222
A51: 50 | B51: 2 | C51: 3 | D51: 2 | E51: 0.00462962963 | F51: 7 | L51: 14 | M51: 0.06481481481
A52: 51 | B52: 2 | C52: 3 | D52: 3 | E52: 0.00462962963 | F52: 8 | L52: 15 | M52: 0.05092592593
A53: 52 | B53: 2 | C53: 3 | D53: 4 | E53: 0.00462962963 | F53: 9 | L53: 16 | M53: 0.02777777778
A54: 53 | B54: 2 | C54: 3 | D54: 5 | E54: 0.00462962963 | F54: 10 | L54: 17 | M54: 0.01388888889
A55: 54 | B55: 2 | C55: 3 | D55: 6 | E55: 0.00462962963 | F55: 11 | L55: 18 | M55: 0.00462962963
A56: 55 | B56: 2 | C56: 4 | D56: 1 | E56: 0.00462962963 | F56: 7
A57: 56 | B57: 2 | C57: 4 | D57: 2 | E57: 0.00462962963 | F57: 8
A58: 57 | B58: 2 | C58: 4 | D58: 3 | E58: 0.00462962963 | F58: 9
A59: 58 | B59: 2 | C59: 4 | D59: 4 | E59: 0.00462962963 | F59: 10
A60: 59 | B60: 2 | C60: 4 | D60: 5 | E60: 0.00462962963 | F60: 11
A61: 60 | B61: 2 | C61: 4 | D61: 6 | E61: 0.00462962963 | F61: 12
A62: 61 | B62: 2 | C62: 5 | D62: 1 | E62: 0.00462962963 | F62: 8
A63: 62 | B63: 2 | C63: 5 | D63: 2 | E63: 0.00462962963 | F63: 9
A64: 63 | B64: 2 | C64: 5 | D64: 3 | E64: 0.00462962963 | F64: 10
A65: 64 | B65: 2 | C65: 5 | D65: 4 | E65: 0.00462962963 | F65: 11
A66: 65 | B66: 2 | C66: 5 | D66: 5 | E66: 0.00462962963 | F66: 12
A67: 66 | B67: 2 | C67: 5 | D67: 6 | E67: =1/6/6/6 -> 0.00462962963 | F67: =SUM(B67:D67) -> 13
A68: 67 | B68: 2 | C68: 6 | D68: 1 | E68: 0.00462962963 | F68: 9
A69: 68 | B69: 2 | C69: 6 | D69: 2 | E69: 0.00462962963 | F69: 10
A70: 69 | B70: 2 | C70: 6 | D70: 3 | E70: 0.00462962963 | F70: 11
A71: 70 | B71: 2 | C71: 6 | D71: 4 | E71: 0.00462962963 | F71: 12
A72: 71 | B72: 2 | C72: 6 | D72: 5 | E72: 0.00462962963 | F72: 13
A73: 72 | B73: 3 | C73: 6 | D73: 6 | E73: 0.00462962963 | F73: 15
A74: 73 | B74: 3 | C74: 1 | D74: 1 | E74: 0.00462962963 | F74: 5
A75: 74 | B75: 3 | C75: 1 | D75: 2 | E75: 0.00462962963 | F75: 6
A76: 75 | B76: 3 | C76: 1 | D76: 3 | E76: 0.00462962963 | F76: 7
A77: 76 | B77: 3 | C77: 1 | D77: 4 | E77: 0.00462962963 | F77: 8
A78: 77 | B78: 3 | C78: 1 | D78: 5 | E78: 0.00462962963 | F78: 9
A79: 78 | B79: 3 | C79: 1 | D79: 6 | E79: 0.00462962963 | F79: 10
A80: 79 | B80: 3 | C80: 2 | D80: 1 | E80: 0.00462962963 | F80: 6
A81: 80 | B81: 3 | C81: 2 | D81: 2 | E81: 0.00462962963 | F81: 7
A82: 81 | B82: 3 | C82: 2 | D82: 3 | E82: 0.00462962963 | F82: 8
A83: 82 | B83: 3 | C83: 2 | D83: 4 | E83: 0.00462962963 | F83: 9
A84: 83 | B84: 3 | C84: 2 | D84: 5 | E84: 0.00462962963 | F84: 10
A85: 84 | B85: 3 | C85: 2 | D85: 6 | E85: 0.00462962963 | F85: 11
A86: 85 | B86: 3 | C86: 3 | D86: 1 | E86: 0.00462962963 | F86: 7
A87: 86 | B87: 3 | C87: 3 | D87: 2 | E87: 0.00462962963 | F87: 8
A88: 87 | B88: 3 | C88: 3 | D88: 3 | E88: 0.00462962963 | F88: 9
A89: 88 | B89: 3 | C89: 3 | D89: 4 | E89: 0.00462962963 | F89: 10
A90: 89 | B90: 3 | C90: 3 | D90: 5 | E90: 0.00462962963 | F90: 11
A91: 90 | B91: 3 | C91: 3 | D91: 6 | E91: 0.00462962963 | F91: 12
A92: 91 | B92: 3 | C92: 4 | D92: 1 | E92: 0.00462962963 | F92: 8
A93: 92 | B93: 3 | C93: 4 | D93: 2 | E93: 0.00462962963 | F93: 9
A94: 93 | B94: 3 | C94: 4 | D94: 3 | E94: 0.00462962963 | F94: 10
A95: 94 | B95: 3 | C95: 4 | D95: 4 | E95: 0.00462962963 | F95: 11
A96: 95 | B96: 3 | C96: 4 | D96: 5 | E96: 0.00462962963 | F96: 12
A97: 96 | B97: 3 | C97: 4 | D97: 6 | E97: 0.00462962963 | F97: 13
A98: 97 | B98: 3 | C98: 5 | D98: 1 | E98: 0.00462962963 | F98: 9
A99: 98 | B99: 3 | C99: 5 | D99: 2 | E99: 0.00462962963 | F99: 10
A100: 99 | B100: 3 | C100: 5 | D100: 3 | E100: 0.00462962963 | F100: 11
A101: 100 | B101: 3 | C101: 5 | D101: 4 | E101: 0.00462962963 | F101: 12
A102: 101 | B102: 3 | C102: 5 | D102: 5 | E102: 0.00462962963 | F102: 13
A103: 102 | B103: 3 | C103: 5 | D103: 6 | E103: 0.00462962963 | F103: 14
A104: 103 | B104: 3 | C104: 6 | D104: 1 | E104: 0.00462962963 | F104: 10
A105: 104 | B105: 3 | C105: 6 | D105: 2 | E105: 0.00462962963 | F105: 11
A106: 105 | B106: 3 | C106: 6 | D106: 3 | E106: 0.00462962963 | F106: 12
A107: 106 | B107: 3 | C107: 6 | D107: 4 | E107: 0.00462962963 | F107: 13
A108: 107 | B108: 3 | C108: 6 | D108: 5 | E108: 0.00462962963 | F108: 14
A109: 108 | B109: 3 | C109: 6 | D109: 6 | E109: 0.00462962963 | F109: 15
A110: 109 | B110: 4 | C110: 1 | D110: 1 | E110: 0.00462962963 | F110: 6
A111: 110 | B111: 4 | C111: 1 | D111: 2 | E111: 0.00462962963 | F111: 7
A112: 111 | B112: 4 | C112: 1 | D112: 3 | E112: 0.00462962963 | F112: 8
A113: 112 | B113: 4 | C113: 1 | D113: 4 | E113: 0.00462962963 | F113: 9
A114: 113 | B114: 4 | C114: 1 | D114: 5 | E114: 0.00462962963 | F114: 10
A115: 114 | B115: 4 | C115: 1 | D115: 6 | E115: 0.00462962963 | F115: 11
A116: 115 | B116: 4 | C116: 2 | D116: 1 | E116: 0.00462962963 | F116: 7
A117: 116 | B117: 4 | C117: 2 | D117: 2 | E117: 0.00462962963 | F117: 8
A118: 117 | B118: 4 | C118: 2 | D118: 3 | E118: 0.00462962963 | F118: 9
A119: 118 | B119: 4 | C119: 2 | D119: 4 | E119: 0.00462962963 | F119: 10
A120: 119 | B120: 4 | C120: 2 | D120: 5 | E120: 0.00462962963 | F120: 11
A121: 120 | B121: 4 | C121: 2 | D121: 6 | E121: 0.00462962963 | F121: 12
A122: 121 | B122: 4 | C122: 3 | D122: 1 | E122: 0.00462962963 | F122: 8
A123: 122 | B123: 4 | C123: 3 | D123: 2 | E123: 0.00462962963 | F123: 9
A124: 123 | B124: 4 | C124: 3 | D124: 3 | E124: 0.00462962963 | F124: 10
A125: 124 | B125: 4 | C125: 3 | D125: 4 | E125: 0.00462962963 | F125: 11
A126: 125 | B126: 4 | C126: 3 | D126: 5 | E126: 0.00462962963 | F126: 12
A127: 126 | B127: 4 | C127: 3 | D127: 6 | E127: 0.00462962963 | F127: 13
A128: 127 | B128: 4 | C128: 4 | D128: 1 | E128: 0.00462962963 | F128: 9
A129: 128 | B129: 4 | C129: 4 | D129: 2 | E129: 0.00462962963 | F129: 10
A130: 129 | B130: 4 | C130: 4 | D130: 3 | E130: 0.00462962963 | F130: 11
A131: 130 | B131: 4 | C131: 4 | D131: 4 | E131: =1/6/6/6 -> 0.00462962963 | F131: =SUM(B131:D131) -> 12
A132: 131 | B132: 4 | C132: 4 | D132: 5 | E132: 0.00462962963 | F132: 13
A133: 132 | B133: 4 | C133: 4 | D133: 6 | E133: 0.00462962963 | F133: 14
A134: 133 | B134: 4 | C134: 5 | D134: 1 | E134: 0.00462962963 | F134: 10
A135: 134 | B135: 4 | C135: 5 | D135: 2 | E135: 0.00462962963 | F135: 11
A136: 135 | B136: 4 | C136: 5 | D136: 3 | E136: 0.00462962963 | F136: 12
A137: 136 | B137: 4 | C137: 5 | D137: 4 | E137: 0.00462962963 | F137: 13
A138: 137 | B138: 4 | C138: 5 | D138: 5 | E138: 0.00462962963 | F138: 14
A139: 138 | B139: 4 | C139: 5 | D139: 6 | E139: 0.00462962963 | F139: 15
A140: 139 | B140: 4 | C140: 6 | D140: 1 | E140: 0.00462962963 | F140: 11
A141: 140 | B141: 4 | C141: 6 | D141: 2 | E141: 0.00462962963 | F141: 12
A142: 141 | B142: 4 | C142: 6 | D142: 3 | E142: 0.00462962963 | F142: 13
A143: 142 | B143: 4 | C143: 6 | D143: 4 | E143: 0.00462962963 | F143: 14
A144: 143 | B144: 4 | C144: 6 | D144: 5 | E144: 0.00462962963 | F144: 15
A145: 144 | B145: 4 | C145: 6 | D145: 6 | E145: 0.00462962963 | F145: 16
A146: 145 | B146: 5 | C146: 1 | D146: 1 | E146: 0.00462962963 | F146: 7
A147: 146 | B147: 5 | C147: 1 | D147: 2 | E147: 0.00462962963 | F147: 8
A148: 147 | B148: 5 | C148: 1 | D148: 3 | E148: 0.00462962963 | F148: 9
A149: 148 | B149: 5 | C149: 1 | D149: 4 | E149: 0.00462962963 | F149: 10
A150: 149 | B150: 5 | C150: 1 | D150: 5 | E150: 0.00462962963 | F150: 11
A151: 150 | B151: 5 | C151: 1 | D151: 6 | E151: 0.00462962963 | F151: 12
A152: 151 | B152: 5 | C152: 2 | D152: 1 | E152: 0.00462962963 | F152: 8
A153: 152 | B153: 5 | C153: 2 | D153: 2 | E153: 0.00462962963 | F153: 9
A154: 153 | B154: 5 | C154: 2 | D154: 3 | E154: 0.00462962963 | F154: 10
A155: 154 | B155: 5 | C155: 2 | D155: 4 | E155: 0.00462962963 | F155: 11
A156: 155 | B156: 5 | C156: 2 | D156: 5 | E156: 0.00462962963 | F156: 12
A157: 156 | B157: 5 | C157: 2 | D157: 6 | E157: 0.00462962963 | F157: 13
A158: 157 | B158: 5 | C158: 3 | D158: 1 | E158: 0.00462962963 | F158: 9
A159: 158 | B159: 5 | C159: 3 | D159: 2 | E159: 0.00462962963 | F159: 10
A160: 159 | B160: 5 | C160: 3 | D160: 3 | E160: 0.00462962963 | F160: 11
A161: 160 | B161: 5 | C161: 3 | D161: 4 | E161: 0.00462962963 | F161: 12
A162: 161 | B162: 5 | C162: 3 | D162: 5 | E162: 0.00462962963 | F162: 13
A163: 162 | B163: 5 | C163: 3 | D163: 6 | E163: 0.00462962963 | F163: 14
A164: 163 | B164: 5 | C164: 4 | D164: 1 | E164: 0.00462962963 | F164: 10
A165: 164 | B165: 5 | C165: 4 | D165: 2 | E165: 0.00462962963 | F165: 11
A166: 165 | B166: 5 | C166: 4 | D166: 3 | E166: 0.00462962963 | F166: 12
A167: 166 | B167: 5 | C167: 4 | D167: 4 | E167: 0.00462962963 | F167: 13
A168: 167 | B168: 5 | C168: 4 | D168: 5 | E168: 0.00462962963 | F168: 14
A169: 168 | B169: 5 | C169: 4 | D169: 6 | E169: 0.00462962963 | F169: 15
A170: 169 | B170: 5 | C170: 5 | D170: 1 | E170: 0.00462962963 | F170: 11
A171: 170 | B171: 5 | C171: 5 | D171: 2 | E171: 0.00462962963 | F171: 12
A172: 171 | B172: 5 | C172: 5 | D172: 3 | E172: 0.00462962963 | F172: 13
A173: 172 | B173: 5 | C173: 5 | D173: 4 | E173: 0.00462962963 | F173: 14
A174: 173 | B174: 5 | C174: 5 | D174: 5 | E174: 0.00462962963 | F174: 15
A175: 174 | B175: 5 | C175: 5 | D175: 6 | E175: 0.00462962963 | F175: 16
A176: 175 | B176: 5 | C176: 6 | D176: 1 | E176: 0.00462962963 | F176: 12
A177: 176 | B177: 5 | C177: 6 | D177: 2 | E177: 0.00462962963 | F177: 13
A178: 177 | B178: 5 | C178: 6 | D178: 3 | E178: 0.00462962963 | F178: 14
A179: 178 | B179: 5 | C179: 6 | D179: 4 | E179: 0.00462962963 | F179: 15
A180: 179 | B180: 5 | C180: 6 | D180: 5 | E180: 0.00462962963 | F180: 16
A181: 180 | B181: 5 | C181: 6 | D181: 6 | E181: 0.00462962963 | F181: 17
A182: 181 | B182: 6 | C182: 1 | D182: 1 | E182: 0.00462962963 | F182: 8
A183: 182 | B183: 6 | C183: 1 | D183: 2 | E183: 0.00462962963 | F183: 9
A184: 183 | B184: 6 | C184: 1 | D184: 3 | E184: 0.00462962963 | F184: 10
A185: 184 | B185: 6 | C185: 1 | D185: 4 | E185: 0.00462962963 | F185: 11
A186: 185 | B186: 6 | C186: 1 | D186: 5 | E186: 0.00462962963 | F186: 12
A187: 186 | B187: 6 | C187: 1 | D187: 6 | E187: 0.00462962963 | F187: 13
A188: 187 | B188: 6 | C188: 2 | D188: 1 | E188: 0.00462962963 | F188: 9
A189: 188 | B189: 6 | C189: 2 | D189: 2 | E189: 0.00462962963 | F189: 10
A190: 189 | B190: 6 | C190: 2 | D190: 3 | E190: 0.00462962963 | F190: 11
A191: 190 | B191: 6 | C191: 2 | D191: 4 | E191: 0.00462962963 | F191: 12
A192: 191 | B192: 6 | C192: 2 | D192: 5 | E192: 0.00462962963 | F192: 13
A193: 192 | B193: 6 | C193: 2 | D193: 6 | E193: 0.00462962963 | F193: 14
A194: 193 | B194: 6 | C194: 3 | D194: 1 | E194: 0.00462962963 | F194: 10
A195: 194 | B195: 6 | C195: 3 | D195: 2 | E195: =1/6/6/6 -> 0.00462962963 | F195: =SUM(B195:D195) -> 11
A196: 195 | B196: 6 | C196: 3 | D196: 3 | E196: 0.00462962963 | F196: 12
A197: 196 | B197: 6 | C197: 3 | D197: 4 | E197: 0.00462962963 | F197: 13
A198: 197 | B198: 6 | C198: 3 | D198: 5 | E198: 0.00462962963 | F198: 14
A199: 198 | B199: 6 | C199: 3 | D199: 6 | E199: 0.00462962963 | F199: 15
A200: 199 | B200: 6 | C200: 4 | D200: 1 | E200: 0.00462962963 | F200: 11
... 17 more rows
